{"text_format":"3","workbook":"xlsx","n_sheets":1,"sheets":["Sheet1"],"not_rendered":{"images":3,"defined_names":3},"read":"whole","date_system":"1900"}

{"sheet":"Sheet1","index":0,"n_rows":235,"n_cols":12,"rows_kept":235,"merged":[[0,0,0,1],[1,0,1,11],[2,1,2,2],[2,8,2,9],[2,10,2,11]]}
["附件"]
["2023年第二批制造业重点项目清单"]
[{"$nulls":8},"单位：亿元"]
["序号","企业名称","项目名称","项目建设内容","项目所在地","总投资","固定资产投资","计划开工年月","计划竣工年月","2023年计划投资","所属行业","备注"]
[null,"总计",{"$f":"C6+C36+C79+C104+C123+C131+C147+C174+C158+C186+C196+C205+C216+C231","v":{"v":216,"d":"216项"}},null,null,{"$f":"F6+F36+F79+F104+F123+F131+F147+F158+F174+F186+F196+F205+F216+F231","v":{"v":577.970073,"d":"577.97"}},{"$f":"G6+G36+G79+G104+G123+G131+G147+G158+G174+G186+G196+G205+G216+G231","v":{"v":396.984849,"d":"396.98"}},null,null,{"$f":"J6+J36+J79+J104+J123+J131+J147+J158+J174+J186+J196+J205+J216+J231","v":{"v":174.0772,"d":"174.08"}}]
["一","南宁市",{"$f":"SUBTOTAL(3,B7:B35)","v":{"v":29,"d":"29项"}},null,null,{"$f":"SUBTOTAL(9,F7:F35)","v":{"v":50.696,"d":"50.70"}},{"$f":"SUBTOTAL(9,G7:G35)","v":{"v":29.9795,"d":"29.98"}},null,null,{"$f":"SUBTOTAL(9,J7:J35)","v":{"v":15.0136,"d":"15.01"}}]
[{"$f":"SUBTOTAL(3,$B$7:B7)","v":1},"广西国潮铝业有限公司","国潮铝业年产20万吨新能源电池铝箔坯料项目","项目主要产品为新能源用高品质铝合金动力电池箔坯料和电池壳体材料。","南宁市邕宁区",{"v":14,"d":"14.00"},{"v":6,"d":"6.00"},"2023-03-01","2025-12-01",{"v":3.7,"d":"3.70"},"1.汽车工业","补链强基项目"]
[{"$f":"SUBTOTAL(3,$B$7:B8)","v":2},"广西华电智能装备有限公司","广西华电智能装备制造基地项目","项目占地280亩，已正式收购广西送变电建设有限责任公司铁塔厂的厂房及设备。项目拟对已购置的厂房改造升级为热处理生产线以及新建（扩建）智能钢结构厂房等，计划增加建设5条智能数控加工生产线。项目建成后，可实现年产13万吨智能钢结构装备产品。","南宁市经开区",{"$f":"105000/10000","v":{"v":10.5,"d":"10.50"}},{"$f":"65000/10000","v":{"v":6.5,"d":"6.50"}},"2022-12-01","2023-06-01",{"$f":"15000/10000","v":{"v":1.5,"d":"1.50"}},"12.电力工业","高端化智能化绿色化改造项目"]
[{"$f":"SUBTOTAL(3,$B$7:B9)","v":3},"广西雄塑科技发展有限公司","高分子材料生产基地及科研中心项目","项目规划建设三大生产基地：一是高分子颗粒材料生产基地，二是市政管网管材生产基地，三是高分子材料研发中心等。项目建成达产后，预计新增年产值10亿元以上，新增年税收4400万元以上。","南宁市经开区",{"$f":"70000/10000","v":{"v":7,"d":"7.00"}},{"$f":"61600/10000","v":6.16},"2022-10-01","2024-10-01",{"$f":"30000/10000","v":{"v":3,"d":"3.00"}},"6.建材工业","增产增效项目"]
[{"$f":"SUBTOTAL(3,$B$7:B10)","v":4},"广西众勤电子科技有限公司","香港天勤科技南宁项目","项目需占用厂房面积约38000平方米，对厂房进行技术升级改造，拟建设6条生线的设备和配套的软件。","南宁市良庆区",{"v":5,"d":"5.00"},{"v":1.2,"d":"1.20"},"2022-08-01","2023-12-01",{"v":0.5,"d":"0.50"},"7.电子工业","高端化智能化绿色化改造项目"]
[{"$f":"SUBTOTAL(3,$B$7:B11)","v":5},"华润怡宝饮料（南宁）有限公司","华润怡宝南宁工厂二期扩建项目","项目占地面积约141702.61平方米。扩建生产车间、辅助用房等，其中二期建筑面积约33141.01平方米，主要包括生产车间2、连廊、地下消防水池等单体。车间2计划设有6条瓶胚注塑线。","南宁市高新区",{"v":2.4,"d":"2.40"},{"v":1.5,"d":"1.50"},"2023-01-01","2024-12-01",{"v":1.5,"d":"1.50"},"8.食品工业","增产增效项目"]
[{"$f":"SUBTOTAL(3,$B$7:B12)","v":6},"广西得力木业开发有限公司","刨花板生产线扩建项目","利用原有生产线公共设施，扩建一条刨花板生产线。项目主要增加刨片料仓送料系统;热风炉干燥系统;筛选送料系统;调拌胶送料系统;铺装送料系统等设备。项目建成后，全厂总产量在原年产30万立方米基础上增加到45万立方米。","南宁市隆安县",{"v":1.5,"d":"1.50"},{"v":1.2,"d":"1.20"},"2022年10月","2023年6月",{"v":1.2,"d":"1.20"},"10.造纸与木材工业","增产增效项目"]
[{"$f":"SUBTOTAL(3,$B$7:B13)","v":7},"南宁粤玻实业有限公司","第三期年产5万吨玻璃制品","建设年生产能力5万吨玻璃溶液窑炉一座，建设生产联合车间一栋（一层）及相关配套设施，购置相关生产设备，安装4条生产线。项目总占地面积：20000.41平方米，总建筑面积：11731.5平方米。项目建成达产后，年生产能力5万吨玻璃瓶。","南宁市东盟经开区",1.25,0.95,"2018-05-01","2023-03-01",0.05,"13.其他工业","增产增效项目"]
[{"$f":"SUBTOTAL(3,$B$7:B14)","v":8},"广西巨星医疗器械有限公司","全球富士彩色胶卷智能化生产基地项目","项目地址位于南宁高新区科园大道60号，扩建自动化胶卷生产线，项目占地面积约230㎡，总投资约1亿元，将新增产能约5000卷/天，带动年产值增加约1亿元。","南宁市高新区",{"v":1,"d":"1.00"},{"v":0.6,"d":"0.60"},"2022-11-01","2023-12-01",{"v":0.6,"d":"0.60"},"13.其他工业","增产增效项目"]
[{"$f":"SUBTOTAL(3,$B$7:B15)","v":9},"广西和谊食品有限公司","年产15000吨深加工速冻水果制品项目","项目主要深加工各类速冻水果、果干、果汁等，预计建设6条粗加工生产线，2条精加工生产线，主要建设水果制品的综合生产厂区，新建原料预处理、原料后熟处理、深加工速冻生产线、成品冷冻贮存仓库，并配套建设生产辅助设施，购置生产、检测 、办公及辅助设备等。","南宁市隆安县",{"v":1,"d":"1.00"},{"v":0.9,"d":"0.90"},"2023年3月","2025年9月",{"v":0.7,"d":"0.70"},"8.食品工业","补链强基项目"]
[{"$f":"SUBTOTAL(3,$B$7:B16)","v":10},"广西世纪创新显示电子有限公司","高端智慧显示器生产线自动化升级改造及系统集成项目","项目对L1、L2、L3、L7、L9等5条线体进行自动化升级改造，增加一批智能制造设备，继续加大MES系统的投入，完善企业管理系统。新增WMS仓库管理系统与MES系统双向整合，实现入库、出库、在库、盘点管理和生产制造现场物流与物料的精准、智能管控，提高企业对订单的响应速度、交货能力和生产回报率。","南宁市高新区",0.75,{"v":0.5,"d":"0.50"},"2022-07-01","2023-12-01",{"v":0.3,"d":"0.30"},"7.电子工业","高端化智能化绿色化改造项目"]
[{"$f":"SUBTOTAL(3,$B$7:B17)","v":11},"广西广投能源集团有限公司","广投能源远程集控管理中心","建设广投能源远程集控管理中心，完成远程集控管理中心的机房、集控大厅的基础装修、消防、暖通和消防等设施建设；完成电能集中监控系统、网络安全防护、电能量采集系统、保信系统、生产管理系统、油品化工监控系统、天然气监控系统建设的建设，同时实现基础设施版块的调度指挥通信系统、集控通信网络建设与其他。","南宁市经开区",{"$f":"6620/10000","v":{"v":0.662,"d":"0.66"}},{"$f":"4377/10000","v":{"v":0.4377,"d":"0.44"}},"2023-01-01","2024-08-01",{"$f":"3000/10000","v":{"v":0.3,"d":"0.30"}},"5.石油化工","高端化智能化绿色化改造项目"]
[{"$f":"SUBTOTAL(3,$B$7:B18)","v":12},"广西腾达名匠工程机械设备有限公司","名匠混凝土拌和站组装设备生产、再制造项目","项目规划建设3条生产线：（1）混凝土拌和站制造设备生产线一条；（2）混凝土拌和站再制造生产线一条；（3）拌和站配套环保设备制造生产线一条,总建筑面积约6000平方米。","南宁市经开区",{"$f":"6200/10000","v":0.62},{"$f":"2000/10000","v":{"v":0.2,"d":"0.20"}},"2022-06-01","2023-06-01",{"v":0.1,"d":"0.10"},"6.建材工业","补链强基项目"]
[{"$f":"SUBTOTAL(3,$B$7:B19)","v":13},"广西南宁安科智能科技有限公司","广西南宁安科智能科技有限公司年产50万套智能监控摄像头项目","项目属于新一代信息技术产业补链延链强链的智能终端零部件的智能监控摄像头生产项目。项目购置高速功能贴片机，模板印刷机，回流焊，空压机，注塑机，线材设备等一批自动化程度高的设备，建成5条全自动生产线，实现年产50万套智能监控摄像头。项目采用自主研发的多级降噪、多种图像增强等技术研制的摄像头产品，可以实现智能分析，对监控场景中的人或物进行识别和判断，就异常现象进行提示或报警。","南宁市武鸣区",{"v":0.6,"d":"0.60"},{"v":0.5,"d":"0.50"},"2022-10-01","2023-12-02",{"v":0.1,"d":"0.10"},"7.电子工业","补链强基项目"]
[{"$f":"SUBTOTAL(3,$B$7:B20)","v":14},"广西拓源新材料有限公司","太阳能新技术新材料系列产品生产基地项目","用地40亩地，建设标准厂房3栋（其中胶水及硅料清洗剂车间一栋、板材车间一栋、再生资源回收利用车间一栋），以及研发与办公大楼一栋，实验综合楼一栋，仓库一栋等附属配套设施，投产后，合计年产光伏专用胶粘剂1000吨，硅料清洗剂6000吨，硅片切割垫板1000万片，沾染有胶粘剂、油墨的塑料桶/板/罐等回收再生塑料颗粒5000吨，年产值3-5亿元，年税收500万。","南宁市隆安县",{"v":0.6,"d":"0.60"},{"v":0.4,"d":"0.40"},"2022年10月","2024年8月",{"v":0.2,"d":"0.20"},"13.其他工业","增产增效项目"]
[{"$f":"SUBTOTAL(3,$B$7:B21)","v":15},"南宁市正稻机械设备有限公司","粮食机械设备生产项目","计划购地19亩建设用地，自建厂房约10000平方米，粮食机械设备生产项目项目。按布局主要分为5个功能区：材料储存检测区、数控切割下料区、机床加工区、机架加工区、设备装配区、产品检验存放区、产品研发区，总建筑面积约10000平方米。","南宁市东盟经开区",{"v":0.5,"d":"0.50"},{"v":0.4,"d":"0.40"},"2022-02-01","2023-05-01",0.01,"2.机械工业","补链强基项目"]
[{"$f":"SUBTOTAL(3,$B$7:B22)","v":16},"广西祖昌门业有限公司","年产33吨新型建材全铝家居技改项目","建设5000平米的场地，购置全铝家居生产线一条","南宁市马山县",{"v":0.5,"d":"0.50"},{"v":0.5,"d":"0.50"},"2021-09-01","2023-12-01",0.02,"6.建材工业","增产增效项目"]
[{"$f":"SUBTOTAL(3,$B$7:B23)","v":17},"南宁山万生物科技有限公司","木瓜生物酶及综合食品加工生产项目","项目属于非糖产品加工产业链延链补链的木瓜生物酶及综合食品加工生产项目。 该项目租用标准厂房面积约15000平方米，主要建设木瓜蛋白酶精制提取生产线车间及木瓜果深加工生产车间，一栋木瓜酶酵素保健品生产车间、研发中心及仓库等配套设施。","南宁市隆安县",{"v":0.5,"d":"0.50"},0.35,"2021年5月","2023年5月",{"v":0.1,"d":"0.10"},"8.食品工业","补链强基项目"]
[{"$f":"SUBTOTAL(3,$B$7:B24)","v":18},"广西红豪淀粉开发有限公司","年产6万吨干法变性淀粉生产线节能减排升级改造项目","项目升级改造现有环保设施，升级改造建设三条成套干法变性淀粉生产线；新建和改造生产车间8500平方米，新建辅料仓库1000平方米，完善升级动力配置；形成年产6万吨干法变性淀粉生产规模，达到节能减排效果。","南宁市武鸣区",0.36,0.21,"2022-02-01","2024-01-01",{"v":0.0749,"d":"0.07"},"8.食品工业","高端化智能化绿色化改造项目"]
[{"$f":"SUBTOTAL(3,$B$7:B25)","v":19},"广西高源淀粉有限公司","特色农产品深加工生产线技术改造项目","利用自有知识产权阳离子淀粉制备方法，依托广西当地特色农产品对香芋、红薯木薯等进行深加工，全面提升产品附加值，实现生产过程中的参数自动调节以及提高生产过程自动化与智能化程度;新建5000平方米生产车间及其相关配套设施;新建年产2万吨珍珠芋圆生产线和年产1万吨寒天晶球生产线，用水少，无废料，产品用途广，新建全粉衍生产品生产车间，配套原有的环保处理设施，不新增污染物排放，实现全自动化生产，具备水净化、打胶、钙化、成型、制冷、杀菌包装等功能，达到年产1万吨淀粉衍生产品目标。","南宁市武鸣区",0.26,0.22,"2021-11-01","2023-12-01",0.16,"8.食品工业","高端化智能化绿色化改造项目"]
[{"$f":"SUBTOTAL(3,$B$7:B26)","v":20},"广西皇氏乳业有限公司","乳制品智能化设备升级改造项目","项目改造升级智能工厂的生产设备，主要购置灌装机、玻璃瓶视觉检验设备、装箱机、无菌罐、超高温杀菌机等设备，以及配套改造升级生产线灌装、包装等环节。","南宁市高新区",0.25,0.25,"2021-06-01","2023-06-01",{"v":0.118,"d":"0.12"},"8.食品工业","高端化智能化绿色化改造项目"]
[{"$f":"SUBTOTAL(3,$B$7:B27)","v":21},"广西好友缘食品有限公司","广西好友缘食品有限公司好友缘月饼厂房扩建项目","厂房扩建及装修、生产线升级。","南宁市经开区",0.25,0.18,"2023-02-01","2023-12-01",0.25,"8.食品工业","增产增效项目"]
[{"$f":"SUBTOTAL(3,$B$7:B28)","v":22},"广西李宁体育用品有限公司","扩产增效技术改造项目","在原厂房进行升级改造，购置电脑花样机、自动印线机等自动化设备以及增加智能裁切机等研发设备及软件。","南宁市东盟经开区",0.25,0.18,"2020-05-01","2023-08-01",0.05,"11.纺织服装与皮革","高端化智能化绿色化改造项目"]
[{"$f":"SUBTOTAL(3,$B$7:B29)","v":23},"广西景鸿源食品包装有限公司","景田纯净水生产线技改扩建项目","计划新增瓶胚注塑机及配套设备，西德乐吹灌旋及配套设备，4.6升景田水整线一套，纸箱裹包机等设备，预计产能达到1500万件/年。","南宁市东盟经开区",0.22,0.08,"2022-02-01","2023-03-01",0.01,"8.食品工业","增产增效项目"]
[{"$f":"SUBTOTAL(3,$B$7:B30)","v":24},"南宁双汇食品有限公司","新增智能气调包装线及节能改造项目","根据项目生产情况，需新增加工设备，主要有生产线、螺旋速冻机、真空斩拌机、烘干机、滚揉机等大型设备，新增设备全部采用国外进口设备。","南宁市东盟经开区",0.15,{"v":0.1,"d":"0.10"},"2022-08-01","2023-08-01",0.13,"8.食品工业","高端化智能化绿色化改造项目"]
[{"$f":"SUBTOTAL(3,$B$7:B31)","v":25},"广西迪泰制药股份有限公司","制剂车间生产线改扩建项目","项目对现有车间进行改扩建，在原有基础上增加建设一条丸剂生产线，补充购进三重四级杆气质联用仪、液相色谱串联质谱联用仪、高效液相色谱仪、高速打粉机、真空低温干燥器、提取罐、浓缩器、全自动制丸机、卧式选丸机、高效包衣机、自动铝塑泡罩包装机、卧式自动包装线（枕包机-装盒机-三维包装机连线）等40台套设备。其中设备投资1000万，车间改扩建投资500万元，项目建成后，增加片剂10亿片、硬胶囊剂5亿粒、丸剂3亿丸。","南宁市东盟经开区",0.15,{"v":0.1,"d":"0.10"},"2022-01-01","2023-06-01",0.05,"9.医药工业","增产增效项目"]
[{"$f":"SUBTOTAL(3,$B$7:B32)","v":26},"广西和发强纸业有限公司","广西和发强纸业有限公司年产5万吨造纸设备更新换代技改项目","安装占地春风得意800平方米一台高速纸机及一台复卷机，主体设备型号为宝拓产2850型高速纸机及宝索产2850型复卷机。","南宁市马山县",0.15,0.15,"2022-06-01","2023-06-01",{"v":0.0877,"d":"0.09"},"10.造纸与木材工业","增产增效项目"]
[{"$f":"SUBTOTAL(3,$B$7:B33)","v":27},"广西南宁中健包装有限公司","中健绿色环保联动印刷生产线项目","本项目为了客户需求对厂房车间升级造改布局，新增SA-1400*2400型移动式全伺服五色水性印刷硬模切振荡清废点数堆叠机生产线，完成上机、印刷、模切、粘钉、堆叠自动一体，项目建成达产预计印刷纸箱产品6400万平方米。","南宁市东盟经开区",0.12,{"v":0.074,"d":"0.07"},"2022-03-01","2023-01-01",{"v":0.074,"d":"0.07"},"13.其他工业","高端化智能化绿色化改造项目"]
[{"$f":"SUBTOTAL(3,$B$7:B34)","v":28},"广西广投燃气有限公司","广西广投燃气有限公司智慧燃气平台项目","广投智慧燃气平台以生产运营远程集控、生产数据分析为核心，从燃气远程集控和大数据视角出发，打造“智慧燃气平台”。完成数据采集系统、平台基础资源系统、平台服务建设系统、业务系统及信息安全系统的建设，同时建设远程集控管理中心机房和集控大屏幕等设施，实现对广投燃气管网、场站的生产运营远程统一调度和安全生产远程监管；实现远程采集经营数据进行大数据分析，为气源及调度提供可靠的数据支撑；实现燃气管网设施数字化和燃气管网信息综合管理，形成广投燃气管网一张图。","南宁市经开区",{"$f":"1040/10000","v":{"v":0.104,"d":"0.10"}},{"$f":"878/10000","v":{"v":0.0878,"d":"0.09"}},"2023-02-01","2023-12-01",{"$f":"1040/10000","v":{"v":0.104,"d":"0.10"}},"13.其他工业","高端化智能化绿色化改造项目"]
[{"$f":"SUBTOTAL(3,$B$7:B35)","v":29},"广西宏通线缆科技有限公司","设备升级改造项目","公司在原有生产线设备购置基础上升级改造。在原有场地新增挤塑机、耐火绕包机、焊接机等相关配套设备。","南宁市东盟经开区",0.05,0.05,"2022-01-01","2025-12-01",{"v":0.025,"d":"0.03"},"13.其他工业","高端化智能化绿色化改造项目"]
["二","柳州市",{"$f":"SUBTOTAL(3,B37:B78)","v":{"v":42,"d":"42项"}},null,null,{"$f":"SUBTOTAL(9,F37:F78)","v":{"v":112.3124,"d":"112.31"}},{"$f":"SUBTOTAL(9,G37:G78)","v":{"v":80.492997,"d":"80.49"}},null,null,{"$f":"SUBTOTAL(9,J37:J78)","v":{"v":65.1285,"d":"65.13"}}]
[{"$f":"SUBTOTAL(3,$B$37:B37)","v":1},"瑞浦赛克动力电池有限公司","瑞浦赛克20GWH动力电池项目","项目位于广西柳州市柳东新区新能源产业园，建筑面积约40万平方米，建设内容包括电池材料生产制造车间、综合库、研发楼、生活配套建筑以及绿化等配套附属设施。项目是青山实业和上汽集团联合投资百亿打造的年产能20GWh动力电池及系统产业基地的重要组成部分。产业基地依托两家企业分别在新能源电池研发、生产、上游原料和新能源汽车市场方面的优势，提高柳州市新能源汽车核心零部件配套能力，打造新能源汽车动力电池产业园。","柳州市柳东新区",{"v":44,"d":"44.00"},{"v":30,"d":"30.00"},"2022年1月","2024年9月",{"v":32,"d":"32.00"},"1.汽车工业","高端化智能化绿色化改造项目"]
[{"$f":"SUBTOTAL(3,$B$37:B38)","v":2},"广西安途制动系统有限公司","安途商用车制动新材料研发及产业化基地建设项目","项目总投资11.5亿元，占地面积约228亩，主要建设研发中心、产品销售中心、产品演示中心、生产车间及辅助配套设施。购置商用车制动性能试验台、等离子体发射光谱仪等实验设备及全自动等比热压机组、400T半自动热压机等生产设备，建立高标准的制动材料研发检测实验室及高性能商用车盘式刹车片生产线，项目建成后主要进行制动摩擦材料的研发、实验、生产及检测等服务，形成年开展研发试验500批次规模及年产1500万片高性能商用车盘式刹车片的生产能力。","柳州市柳东新区",{"v":11.5,"d":"11.50"},{"v":10,"d":"10.00"},"2023年6月","2024年12月",{"v":6,"d":"6.00"},"2.机械工业","高端化智能化绿色化改造项目"]
[{"$f":"SUBTOTAL(3,$B$37:B39)","v":3},"广西庆达精密机械有限公司","智能电机项目","项目总占地面积66667㎡（折合约100亩），预计厂区规划总建筑面积50000㎡。主要生产冰箱、洗衣机、空调等各类智能家电电机。","柳州市柳江区",{"v":3,"d":"3.00"},{"v":2.2,"d":"2.20"},"2023年4月","2024年9月",{"v":1,"d":"1.00"},"7.电子工业","补链强基项目"]
[{"$f":"SUBTOTAL(3,$B$37:B40)","v":4},"思必驰科技股份有限公司","柳东新区思必驰智能制造工厂项目","项目采用“AI人工智能+智能网联”技术开发新一代汽车智能座舱领域，“以软件定义汽车”理念在柳州建设“思必驰智能座舱研发生产基地”，项目购入精密的SMT贴片机、波峰焊、汽车实验设备、生产设备等先进设备并建造十万等级的无尘智能化车间，建设最终形成年产150万汽车智能硬件和年产200万套lot语音模组。","柳州市柳东新区",{"v":2,"d":"2.00"},{"v":0.9,"d":"0.90"},"2023-04-01","2023年9月",{"v":1,"d":"1.00"},"1.汽车工业","高端化智能化绿色化改造项目"]
[{"$f":"SUBTOTAL(3,$B$37:B41)","v":5},"柳州五菱新能源汽车有限公司","中面物流车产品开发项目","本项目基于公司柳东新能源整车基地现有场地资源，新建焊接线，适应性改造现有产线，开发量产模/检/夹具等工装设备，实现形成年产3万辆生产能力。项目产品是一款符合新能源标准、造型时尚、载货能力强的专业城市配送物流车。主要包括产品研发、试验及产线建设，项目达产后形成年产3万辆生产能力。","柳州市柳东新区",{"v":1.5,"d":"1.50"},{"v":0.9,"d":"0.90"},"2022-09-01","2024年4月",{"v":0.7,"d":"0.70"},"1.汽车工业","补链强基项目"]
[{"$f":"SUBTOTAL(3,$B$37:B42)","v":6},"广西兴达精细化工有限公司","年产20万吨甲醛、年产3万吨三聚氰胺胶水、年产3万吨脲醛胶水、年产1万吨脱模剂等浸胶助剂系列产品、年产2000吨三环唑、年产5000吨磷酸三辛酯项目","项目甲醛生产拟采用先进的银法生产工艺，甲醇转化率达98.8%，同时所得甲醛通过反应釜的加成、缩聚反应获得三聚氰胺胶水和脲醛胶水，各项浸胶助剂采用共用生产线生产方式，磷酸三辛酯采用先进减压法技术，三环唑以邻甲苯胺等为原料，经加成、关环、取代、扩环四步反应制得，购置甲醛设备、反应釜、储罐设备、蒸发式冷却器、回用水设备、纯水设备、制氮系统等设备，建成年产20万吨甲醛、3万吨三聚氰胺胶水、3万吨脲醛胶水、1万吨脱模剂等浸胶助剂系列、2000吨三环唑、5000吨磷酸三辛酯等产品的生产能力。","柳州市柳城县",{"v":1.2,"d":"1.20"},{"v":0.7869,"d":"0.79"},"2022-03-01","2023年12月",0.65,"5.石油化工","补链强基项目"]
[{"$f":"SUBTOTAL(3,$B$37:B43)","v":7},"广西麓湘汇木业有限公司","优质单板旋切、烘干基地项目","项目总占地面积120多亩，总建筑面积80000平方米，主要生产旋切优质单板、单板干燥、木制品成品及精深加工。","柳州市鹿寨县",{"v":1.2,"d":"1.20"},{"v":0.4,"d":"0.40"},"2023-02-01","2024-06-01",{"v":0.8,"d":"0.80"},"10.造纸与木材工业","高端化智能化绿色化改造项目"]
[{"$f":"SUBTOTAL(3,$B$37:B44)","v":8},"柳州桂格复煊科技有限公司","柳州桂格复煊电子工厂扩建项目","本项目在公司现有厂区内建设，项目采用自有专利技术，制造LED模组等产品，项目购置SMT自动化产线、ICT检测设备、三防胶喷涂线、选择性波峰焊接设备、LED自动化组装线、LED半自动化组装线等国内外先进生产设备，建设后企业年总产高质量LED车灯模组1500万套，预计完全建成后年总产值可达10亿元。","柳州市柳东新区",{"v":1.013,"d":"1.01"},{"v":1.013,"d":"1.01"},"2022-07-01","2024年6月",0.55,"7.电子工业","增产增效项目"]
[{"$f":"SUBTOTAL(3,$B$37:B45)","v":9},"一汽解放汽车有限公司柳州分公司","新能源等产品导入及智慧物流升级项目","在一期现有投资的基础上，增加厂内物流库建设、车间物流升级、物流拣配中心2.0超市货到人、离线验证能力提升、信息化升级，新能源生产设施设备等。新增工艺设备97台（套），其中：智慧物流升级工艺设备83套，新能源生产设施14套。","柳州市柳东新区",{"v":0.7982,"d":"0.80"},{"v":0.7982,"d":"0.80"},"2022-07-01","2023年12月",0.38,"1.汽车工业","增产增效项目"]
[{"$f":"SUBTOTAL(3,$B$37:B46)","v":10},"广西贺尔德实业有限公司","预应力系列产品智能制造项目","项目购买土地约25.74亩，拟建生产厂房11315.7㎡。对产品生产线进行智能化技术升级改造，购买自动进刀立式钻床、CNC全自动高速金属圆锯机等自动化设备，利用自有专利技术及国内先进生产工艺，既可以对不同规格产品进行柔性化生产，也能降低人工成本。项目建成投产后，预计年销售收入2亿元。","柳州市柳北区",0.77,0.65,"2022-02-01","2023年8月",0.25,"2.机械工业","高端化智能化绿色化改造项目"]
[{"$f":"SUBTOTAL(3,$B$37:B47)","v":11},"广西子铭再生资源有限公司","年产 60 万吨废钢加工配送示范基地建设项目","项目建设新购置金属打包液压机、龙门剪、抓钢机、地磅等20 余套大中型先进设备，并配套建设供电、供水等设施，形成年加工再利用60万吨废钢生产能力。项目实施旨在以废钢再生资源循环利用技术为支撑，形成废钢加工再利用的集散地，整合技术落后的加工小企业，建成一个集回收分拣、集散交易、示范加工等诸多功能于一体的再生资源循环利用产业示范区。","柳州市柳城县",{"v":0.7,"d":"0.70"},0.25,"2021年5月","2023年6月",0.16,"6.建材工业","高端化智能化绿色化改造项目"]
[{"$f":"SUBTOTAL(3,$B$37:B48)","v":12},"广西联盛钢结构有限公司","重钢结构生产线项目","项目属于建筑用钢产业链项目，采用自主研发先进技术和生产工艺。项目购置数字化排版下料设备、智能焊机等先进自动化生产设备，企业拥有十余项专利技术，并自行研制出了一种剪板机用板材定位装置、一种可调式钢结构喷涂组件、一种用于刚结构生产的焊接组件等一大批新技术产品，建立了完善的研发、生产、销售、管理体系。","柳州市柳北区",{"v":0.6,"d":"0.60"},{"v":0.5,"d":"0.50"},"2021-06-01","2023年6月",{"v":0.5,"d":"0.50"},"6.建材工业","补链强基项目"]
[{"$f":"SUBTOTAL(3,$B$37:B49)","v":13},"柳州五菱柳机动力有限公司","新增年产60万件缸盖毛坯生产能力建设项目","项目总投资5500万元，在五菱柳机原厂房进行技术改造，开发先进的集成式缸盖毛坯铸造工艺技术，新购浇注、熔化、制芯、后处理先进设备，开展生产线技术改造，形成新增60万件缸盖毛坯年生产能力，主要配套上通五、比亚迪等企业。","柳州市鱼峰区",0.55,0.55,"2022年10月","2024年10月",0.17,"2.机械工业","补链强基项目"]
[{"$f":"SUBTOTAL(3,$B$37:B50)","v":14},"柳州市桥厦科技发展有限公司","锚具、缆索产品生产基地扩建项目","项目投产后，正常年主要生产锚具和缆索产品，年产规模为：锚具500万孔，缆索4000吨，本项目总建筑面积12777.88平方米。","柳州市柳江区",{"v":0.5423,"d":"0.54"},0.33,"2023年2月","2023年11月",{"v":0.3,"d":"0.30"},"6.建材工业","增产增效项目"]
[{"$f":"SUBTOTAL(3,$B$37:B51)","v":15},"广西柳州市金冰食品有限公司","年产3万吨晶糖精深加工基地与自动化生产线建设项目","项目建设现代化生产车间厂房及附属设施，建筑面积约积11548平方米，购置冰晶糖料自动化智能化生产线、备三轴机械手系统、智能包装流水线、智能仓库系统等设备，建设晶糖自动化生产线，形成年产年产3万吨晶糖的生产能力。","柳州市柳江区",{"v":0.4,"d":"0.40"},{"v":0.3,"d":"0.30"},"2021年1月","2023年12月",0.15,"8.食品工业","增产增效项目"]
[{"$f":"SUBTOTAL(3,$B$37:B52)","v":16},"柳州联洪合成材料有限公司","汽车用阻尼材料生产线迁建项目","主要建设内容包括建设生产区、原料区及成品区、办公区、中转区等。项目将设置汽车用阻尼材料生产线,购置捏合机、压延机、涂覆机、电风干机、裁断机等生产设备。形成年产1.5万吨汽车用阻尼材料。","柳州市鹿寨县",0.32,0.25,"2021年9月","2023年6月",0.07,"1.汽车工业","增产增效项目"]
[{"$f":"SUBTOTAL(3,$B$37:B53)","v":17},"柳州市方益机械设备有限责任公司","汽车零配件制造数字化升级项目","通过购置机器人焊接工作站、全数字智能精密补焊机、OTC示教器数控屏等装备、应用SiemensNX12.0、DOPSoft4.00.06.47等设计、仿真管理软件系统，进行汽车零配件生产数字化升级建设，生产实现数字化管理，把人、IT系统、自动化设备连通在一起，实现柔性生产功能，打造数字化车间，使公司生产提质增效。","柳州市柳北区",{"v":0.3,"d":"0.30"},{"v":0.3,"d":"0.30"},"2021-07-01","2023年6月",0.13,"1.汽车工业","增产增效项目"]
[{"$f":"SUBTOTAL(3,$B$37:B54)","v":18},"广西鸿淦食品科技有限责任公司","年产35000吨螺蛳粉配料数字化工厂转型项目","项目主要建设中控数字化AI智能化工厂，专业定制螺蛳粉配料数字化智慧生产线，采购全自动包装机、电子之智能单头大锅、高压静电油烟净化器等成套设备，实现设备自动化，生产透明化，决策数据化的生产模式，项目建成投产后可达到年产35000吨螺蛳粉配料的规模。","柳州市柳江区",{"v":0.3,"d":"0.30"},0.23,"2022年9月","2024年5月",0.15,"8.食品工业","增产增效项目"]
[{"$f":"SUBTOTAL(3,$B$37:B55)","v":19},"广西曼可顿食品科技有限公司","新产品新技术改造提升","项目采用自主研发及先进技术，研发制造出袋装柳州螺蛳粉、冲泡型柳州螺蛳粉、干拌型螺蛳粉等新产品。项目购置自动给袋式包装机、巴氏灭菌流水线、自动封口机、自动桶装包装机、全自动高速热收缩膜包装机等先进设备，建设形成年产值1500万包产能。","柳州市柳南区",{"v":0.3,"d":"0.30"},0.15,"2020-05-01","2023年12月",0.03,"8.食品工业","增产增效项目"]
[{"$f":"SUBTOTAL(3,$B$37:B56)","v":20},"柳州双林汽车部件科技有限公司","汽车内外饰件生产系统升级改造项目","通过购置一批智能化焊接设备及配套设施、软硬件系统实施升级改造，包括焊接机器人、机械手臂、视觉检测系统等，并同步升级生产系统相关附属设施，提升汽车内外饰件生产智能化水平，提高生产效率，实现柔性化生产。项目建成后，公司汽车内外饰件生产能力达86万套/年，生产效率提高48%，生产成本降低8%，产品不良品率降低10%。","柳州市柳北区",0.27,0.22,"2021年4月","2023年4月",0.04,"1.汽车工业","增产增效项目"]
[{"$f":"SUBTOTAL(3,$B$37:B57)","v":21},"柳州奥德永兴汽车零部件科技有限公司","年产30万套新能源车用蓄电池盒智能化生产线建设","①生产工艺水平提升：引进哈尔滨工业大学的内高压成形技术替代原来的冲压卷焊成形工艺，新能源车用蓄电池盒制造技术采用公司自主研发的自动化、智能化生产工艺，工艺技术属国内先进。②新增25台套焊接机器人、自动涂装设备、气密性检测仪、PLC控制系统、数控内高压成形机、数控弯管机等自动、智能设备，新增欧式双梁行车、配套模具。③生产线智能化水平提升建设：建成年产30万套新能源车用蓄电池盒智能化生产线。","柳州市柳东新区",0.25,0.25,"2021年1月","2023年12月",0.08,"1.汽车工业","高端化智能化绿色化改造项目"]
[{"$f":"SUBTOTAL(3,$B$37:B58)","v":22},"广西柳鹿东方汽车部件有限公司","汽车零部件生产车间及相关配套设施项目","项目占地面积44.63亩，主要建设生产厂房及相关生产辅助设施，项目购置注塑机及配套生产设备，建设形成年产50万台发动机进气歧管、20万台车门版生产能力，新增年产值15000万元。","柳州市鹿寨县",0.25,{"v":0.2,"d":"0.20"},"2021年1月","2023年10月",0.13,"1.汽车工业","高端化智能化绿色化改造项目"]
[{"$f":"SUBTOTAL(3,$B$37:B59)","v":23},"柳州乘丰专用汽车有限公司","专用车生产线设备扩增及环保改造项目","项目在原有生产线基础上进行升级改造，计划购买设备以及模具和检具和工位器具，投资安装及基础建设进行生产线生产设备扩增及环保改造，完成新产品的迭代更新，提高产线产量并增加生产的环保性。","柳州市鹿寨县",{"v":0.2,"d":"0.20"},0.18,"2021年1月","2023年6月",{"v":0.1,"d":"0.10"},"1.汽车工业","增产增效项目"]
[{"$f":"SUBTOTAL(3,$B$37:B60)","v":24},"柳州市华鹏机电焊接有限公司","年产200万套焊接电极及焊接材料生产线","项目建设生产厂房及附属设施，购置铣钻床、磁力抛光机、数控立式钻床、数控车床等先进的生产设备开发新型产品，建设焊接电极及焊接材料生产线，形成年产200万套焊接电极及焊接材料的生产能力。公司目前是上海通用、东风二汽集团、北汽公司等汽车企业，格力、美的家电等企业的供应商。","柳州市柳江区",{"v":0.2,"d":"0.20"},0.15,"2021年1月","2023年6月",0.07,"2.机械工业","补链强基项目"]
[{"$f":"SUBTOTAL(3,$B$37:B61)","v":25},"柳州双银汽车内饰有限公司","汽车内饰件生产线扩建项目","项目占地面积5333㎡，主要建设生产厂房、办公楼及相关生产辅助设施，项目购置聚氨酯汽车地毯发泡自动浇筑系统、四柱式伺服液压机、筛网式烘箱等先进自动化设备，建设形成年20万套汽车内饰的生产能力，新增年产值5000万元。","柳州市鹿寨县",{"v":0.2,"d":"0.20"},0.15,"2021年9月","2023年6月",0.05,"1.汽车工业","高端化智能化绿色化改造项目"]
[{"$f":"SUBTOTAL(3,$B$37:B62)","v":26},"柳州市东海汽车零部件有限公司","汽车 及新能源汽车铸件项目","项目是对新能源汽车产业链环节的关键配套，项目建设占地8亩，项目预计建设成铸铝自动生产线3-5条，购置数字化、智能化等相关设备20-30台，实现产线全自动化，提高生产效率，减少人员人工成本，减少能耗，项目建成后预计产值可达30000-50000万元。","柳州市鹿寨县",{"v":0.2,"d":"0.20"},0.12,"2023年4月","2023年12月",0.17,"1.汽车工业","补链强基项目"]
[{"$f":"SUBTOTAL(3,$B$37:B63)","v":27},"广西鹿寨桂浙塑料包装有限公司","阀口袋生产线技改项目","对原有设备进行更新改造，满足市场需要，提高产品生产效率。 建筑物：利用原有厂房，17330M2； 生产线：对原有的生产线进行技改； 主要设备:新增阀口制袋机、印刷机、覆膜机、拉丝机。 生产工艺：保持原有生产工艺不变； 主要主品：阀口袋产品；产能：技改前年产7500万套塑料编织袋，技改后年产9500万套塑料编织袋； 能耗：技改前年消耗497.31吨标煤，技改后年消耗749.15吨标煤； 本项目不使用国家限制或者淘汰的工艺和设备。","柳州市鹿寨县",0.12,{"v":0.1,"d":"0.10"},"2021年6月","2023年12月",{"v":0.0485,"d":"0.05"},"13.其他工业","增产增效项目"]
[{"$f":"SUBTOTAL(3,$B$37:B64)","v":28},"柳州市广大德金属加工有限公司","汽车仪表盘支架（CCB）数字化生产改造项目","项目通过购置冲压机器人、焊接机器人、高速自动化冲床等先进设备，技术开发与生产管理员运用CAD、UG、ERP软件实现数字化建模、设计、仿真和信息化管理；汽车仪表盘支架（CCB）数字化生产改造可实现冲压和焊接的自动化生产和数字化管理，提高产品质量和产能；项目建设可形成年产100万件汽车仪表盘支架（CCB）智能化制造的产能。","柳州市柳北区",0.12,{"v":0.098,"d":"0.10"},"2021-05-01","2023年12月",0.04,"2.机械工业","增产增效项目"]
[{"$f":"SUBTOTAL(3,$B$37:B65)","v":29},"柳州舜宇模具有限责任公司","汽车内饰塑料件智能化改造升级项目","项目针对汽车内饰塑料件制造中人工成本高、招工困难、人工操作产品质量可靠性不高等问题，引进国内先进的电动熔胶、电动抱闸、快速热循环注塑成型等全新技术的注塑机，配合上料机、机械手、皮带机、五轴往复式喷涂机、冷却塔、冰水机、智能在线监控系统等关键设备和系统，形成年产20万套汽车内饰件。","柳州市柳东新区",0.12,0.07,"2021年8月","2023年12月",0.05,"1.汽车工业","增产增效项目"]
[{"$f":"SUBTOTAL(3,$B$37:B66)","v":30},"柳州千里马木业有限公司","年产10万立方米建筑模板生产项目","项目占地面积20000平方米(30亩)，项目拟配备板机8套、热压机12台排板线20条、涂胶机10台、4t/h锅炉1台、胶水设备1套。项目建成后可年产建筑模板10万立方","柳州市柳城县",{"v":0.1,"d":"0.10"},0.08,"2020年8月","2023年2月",0.01,"10.造纸与木材工业","补链强基项目"]
[{"$f":"SUBTOTAL(3,$B$37:B67)","v":31},"柳州菱特动力科技有限公司","V6发动机质量提升技改项目","项目拟对原有生产线进行智能化技术改造升级，以提升质量水平，改善供应前端和制造过程保证能力，增补完善产品开发能力为目标。包括：新增电控拧紧枪、工业级二维码扫描枪、曲轴、凸轮轴综合测量仪，进行MES系统升级改造、热试台架改造等内容，进而实现发动机装机质量和效率的提高。","柳州市柳江区",0.08,0.08,"2023年2月","2023年12月",0.08,"1.汽车工业","增产增效项目"]
[{"$f":"SUBTOTAL(3,$B$37:B68)","v":32},"广西双英集团股份有限公司","新能源汽车供应链体系转型提升项目","根据BYD，小鹏汽车等新能源汽车主机厂供应链体系准入要求，公司对产品生产线的生产自动化、信息化、智能化进行全面提升改造。项目对MES系统进行全面优化升级，通过购置研发设计catia设计软件，定制帆软报表平台，SQL、云指控智能节能系统和PLM系统及精益生产培训等系列措施提升产品生产智能化制造水平，降低生产成本，提高生产效率。","柳州市北部生态新区（阳和）",0.08,0.08,"2022-01-01","2023年12月",0.05,"1.汽车工业","增产增效项目"]
[{"$f":"SUBTOTAL(3,$B$37:B69)","v":33},"上汽通用五菱汽车股份有限公司","宝骏基地纯电平台智能制造产线项目","应用人工智能、5G、大数据、边缘计算等前沿技术，围绕用户需求，构建工业4.0未来工厂。冲压方面，在宝骏冲压二期改建单层钢结构厂房；车身方面，在宝骏车身一期南面改建一条柔性车身线及分总成中心；涂装方面，在宝骏涂装二期改建三层钢混结构厂房；总装方面，改建单层钢结构厂房及车体输送连廊；其他方面，新增物流及整车交付，对厂区道路、管网等进行改造。","广西柳州",10.99,10.38,"2022-01-01","2023年12月",{"v":8,"d":"8.00"},"1.汽车工业","高端化智能化绿色化改造项目"]
[{"$f":"SUBTOTAL(3,$B$37:B70)","v":34},"上汽通用五菱汽车股份有限公司","F510C产品项目","基于柔性模块化架构，开发F510C产品，实现PHEV、HEV、EV三种动力形式，利用宝骏基地原有厂房，对冲压、车身、总装车间原有的生产线和设备进行适应性改造，以满足F510C系列产品的生产。宝骏基地总体产能不变，仅对现有产能进行产品结构调整。","广西柳州",{"v":6.1,"d":"6.10"},{"v":2.4,"d":"2.40"},"2022-11-01","2024-06-01",{"v":3.9,"d":"3.90"},"1.汽车工业","补链强基项目"]
[{"$f":"SUBTOTAL(3,$B$37:B71)","v":35},"柳州法恩赛克新能源科技有限公司","年产10万吨锂离子电池电解液项目","项目专门为锂电池配套电解液，产品以磷酸铁锂和三元动力电解液为主，涵盖低速车、乘用车、商用车、重型载重车辆、观光车等新能源汽车，数码、储能、科研、军工产品等领域。占地123亩，新建综合办公楼、先进分析技术中心、自动化控制中心、智慧工厂，包括自动化生产、清洗、灌装装置区、智能储罐系统等先进设备，建成后将实现年产能10万吨锂离子电池电解液。","鹿寨县",{"v":5.0048,"d":"5.00"},{"v":3.172797,"d":"3.17"},"2022年10月","2023-12-01",{"v":2,"d":"2.00"},"1.汽车工业","补链强基项目"]
[{"$f":"SUBTOTAL(3,$B$37:B72)","v":36},"广西中源机械有限公司","广西中源机械液压元件智能生态工厂建设项目","本项目拟建造液压元件智能生态生产基地，项目秉承精益化、自动化与少人化、信息化与智能化规划原则，打造成为具备行业内一流水平的液压零部件研发、制造基地。项目拟在广西中源机械有限公司液压件分公司（阳和制造工厂）现有设备设施的基础上进行产能扩充、技术改造与自动化升级，项目建成后预计可实现年产各类液压元件60余万件。","北部生态新区",{"v":4.0541,"d":"4.05"},{"v":4.0541,"d":"4.05"},"2022-12-01","2027-12-30",{"v":1.3,"d":"1.30"},"2.机械工业","高端化智能化绿色化改造项目"]
[{"$f":"SUBTOTAL(3,$B$37:B73)","v":37},"广西晶联光电材料有限责任公司","年产500吨ITO靶材项目","项目购置土地，新建1.7万平米厂房，购置液压件、烧结炉、数控机床等设备，建成制粉车间、制靶车间、机加工车间、绑定车间、研发中心等。形成年产500吨高性能ITO靶材生产线。","北部（阳和）工业新区",{"v":4,"d":"4.00"},{"v":2.5,"d":"2.50"},"2023年6月","2024年12月",{"v":0.5,"d":"0.50"},"2.机械工业","补链强基项目"]
[{"$f":"SUBTOTAL(3,$B$37:B74)","v":38},"上汽通用五菱汽车股份有限公司","新时代纯电物流车项目","开发全新纯电平台轻客产品，打造“更快”“更省”“更便利”的新能源物流车N350V-EV：①纯电架构布置形式；②半承载式车身提升货箱容积，并预留更大容积的拓展；③水冷电池方案提升快充效率。河西基地总体产能不变，仅对现有产能进行产品结构调整。","广西柳州",{"v":2.8,"d":"2.80"},{"v":1.4,"d":"1.40"},"2022-11-01","2024-09-01",{"v":0.5,"d":"0.50"},"1.汽车工业","补链强基项目"]
[{"$f":"SUBTOTAL(3,$B$37:B75)","v":39},"广西锦江火浪新能源科技有限公司","新能源热泵智能制造项目","项目采用自动化数控加工及在线自动检测系统等先进技术，研发制造家用热泵热水器产品系列、商用（变频）热泵热水机组系列、低温（变频）热泵冷暖机组系统、热泵烘干机组系列等新产品。项目购置总装生产流水线、产品在线自动监测系统等先进设备，建设形成年产家用热泵热水器产品系列50000台、商用（变频）热泵热水机组系列8000台、低温（变频）热泵冷暖机组系统10000台、热泵烘干机组系列2000台产能。","柳江区",{"v":2,"d":"2.00"},{"v":1.5,"d":"1.50"},"2022年9月","2024年12月",0.82,"2.机械工业","增产增效项目"]
[{"$f":"SUBTOTAL(3,$B$37:B76)","v":40},"上汽通用五菱汽车股份有限公司","CN202KHEV产品项目","以电感驾乘体验加电感造型设计，打造新能源时代下的时尚电感SUV，利用宝骏基地原有厂房，对冲压、车身、总装车间原有的生产线和设备进行适应性改造，以满足CN202K-HEV等系列产品的生产。宝骏基地总体产能不变，仅对现有产能进行产品结构调整。","广西柳州",1.38,{"v":0.6,"d":"0.60"},"2023-01-01","2023-12-01",{"v":0.5,"d":"0.50"},"1.汽车工业","补链强基项目"]
[{"$f":"SUBTOTAL(3,$B$37:B77)","v":41},"柳州畅航光电科技有限公司","智慧显示屏及智能终端制造基地项目","项目属于新一代信息技术产业链延链补链的新型显示项目。项目采用全自动化生产等新技术，研发制造智慧显示器新产品。项目全自动显示器生产线设备、全自动贴合生产线设备、自动偏光片贴片等先进设备，建设智慧显示器产品生产线及显示屏相关的智能终端产品制造，实现新增产值50000万元。","北部生态新区",{"v":1.3,"d":"1.30"},{"v":1.1,"d":"1.10"},"2021年11月","2023年12月",{"v":1,"d":"1.00"},"7.电子工业","高端化智能化绿色化改造项目"]
[{"$f":"SUBTOTAL(3,$B$37:B78)","v":42},"柳州市得华食品有限公司","得华食品科技城二期项目","项目主要内容包括建设公司总部大楼、员工宿舍、数字化体验馆，引进金检重检一体机、全自动给袋式真空包装机、CIP系统、乳化反应釜、智能V型液体机等80台先进设备，建设自动化设备生产线3条，采用米粉杂质X射线检测等先进技术，形成配套年产6亿袋螺蛳粉的原材料产能。","鱼峰区",{"v":1.5,"d":"1.50"},{"v":1.1,"d":"1.10"},"2023年4月","2024年12月",{"v":0.7,"d":"0.70"},"8.食品工业","高端化智能化绿色化改造项目"]
["三","桂林市",{"$f":"SUBTOTAL(3,B80:B103)","v":{"v":24,"d":"24项"}},null,null,{"$f":"SUBTOTAL(9,F80:F103)","v":134.05},{"$f":"SUBTOTAL(9,G80:G103)","v":98.69},null,null,{"$f":"SUBTOTAL(9,J80:J103)","v":7.34}]
[{"$f":"SUBTOTAL(3,$B$80:B80)","v":1},"广西新桂轮橡胶有限公司，桂林市高新技术产业发展集团有限公司","广西新桂轮绿色智能百亿橡胶生态产业园项目","规划建设用地2927亩，总建筑面积115.8万平方米，计划总投资100亿元，建设以轮胎生产制造为核心，延伸产业链带动炭黑、钢帘线等上游配套产业入驻，打造橡胶产业研发、生产、展示、立体销售一体化平台，形成年产值超180亿元的橡胶轮胎产业集群。","桂林经开区",{"v":100,"d":"100.00"},{"v":80,"d":"80.00"},"2019-02-01","2023年12月",{"v":0.1,"d":"0.10"},"13.其他工业","高端化智能化绿色化改造项目"]
[{"$f":"SUBTOTAL(3,$B$80:B81)","v":2},"广西科伦制药有限公司","广西科伦制药溶媒回收系统升级改造及节能降耗改造项目","本项目计划总投资905.25万元，其中固定资产投资524万元。项目主要建设内容：1、对溶剂回收车间进行节能改造，提升效率，降低能耗；2、对部分回收体系进行自动化升级改造； 3、二期污水站厌氧罐曝气池技术改造，4.动力车间节能降耗改造；改造完成后，将极大的提升溶媒回收的效率，效率比改造前提升,30%，每年节能降耗达150万，新增产值3000万。","桂林经济技术开发区",{"v":9,"d":"9.00"},0.05,"2022年10月","2023年10月",0.08,"9.医药工业","高端化智能化绿色化改造项目"]
[{"$f":"SUBTOTAL(3,$B$80:B82)","v":3},"桂林赐佳鞋业有限公司","桂林赐佳鞋业有限公司建设项目","项目新增用地230亩，项目分两期建设，一期建设标准化生产厂房6栋及配套用房，购置及安装制鞋生产线20条，为安踏、斐乐、耐克、NB四大品牌代工；二期在桂林全州建设鞋业生产基地。项目投产后，项目制鞋产能、产值居广西前列。","桂林市全州县",{"v":3.5,"d":"3.50"},{"v":2.9,"d":"2.90"},"2020年12月","2023-03-01",{"v":0.1,"d":"0.10"},"11.纺织服装与皮革","补链强基项目"]
[{"$f":"SUBTOTAL(3,$B$80:B83)","v":4},"广西禅方药业有限公司","金安国纪中成药生产基地建设（暨广西禅方药业有限公司药品制剂扩产技改）项目","项目新征地114亩，引进药品批文5-10个，建设生产厂房、原料仓库、成品仓库、质检楼、综合用房、职工宿舍及相关辅助设施等合计82300平方米，以及配套水电、消防、环保等设施，拟新设20条生产线及配套中药提取，建成后年产能达45亿片片剂、6亿袋颗粒剂、15亿粒胶囊剂、300吨酒剂及1200万瓶糖浆剂（合剂）及1亿个塑料瓶。","桂林市全州县",{"v":3,"d":"3.00"},{"v":2.8,"d":"2.80"},"2021年10月","2024年10月",{"v":0.9,"d":"0.90"},"9.医药工业","高端化智能化绿色化改造项目"]
[{"$f":"SUBTOTAL(3,$B$80:B84)","v":5},"桂林洁伶工业有限公司","新建生产线项目","项目占地44318㎡，建筑面积56015㎡，主要建设智能化生产车间及立体仓库、消毒车间等，建设12条卫生巾及尿裤生产线，项目建成达产后年产能500万件产品规模。","桂林市七星区",{"v":3,"d":"3.00"},{"v":2,"d":"2.00"},"2021-03-01","2023年12月",{"v":0.4,"d":"0.40"},"13.其他工业","增产增效项目"]
[{"$f":"SUBTOTAL(3,$B$80:B85)","v":6},"兴安海螺水泥有限责任公司","2#熟料生产线综合能效提升项目","①2#原料磨技改辊压机终粉磨；②生料立磨系统降阻改造；③预热器旋风筒改造高效低阻旋风筒；④分解炉分级燃烧改造；⑤三代篦冷机升级四代篦冷机；⑥窑头燃烧器升级低氮高效燃烧器；⑦煤磨及其它物流输送设备节能改造。","桂林市兴安县",2.47,2.47,"2022年11月","2023-08-01",{"v":2.2,"d":"2.20"},"6.建材工业","增产增效项目"]
[{"$f":"SUBTOTAL(3,$B$80:B86)","v":7},"广西优尼康通医疗科技有限公司","桂林优尼康通医疗器械及防护设备生产基地建设项目","项目属于生物医药及医疗器械产业链延链补链的健康器械项目。项目采用新型超微孔膜材料等新型材料技术，研发制造医疗器械、医疗防护用品等产品。项目购置防静电双边滚筒生产线、纯化水制水机、封边机、自动连续式封口机、数显恒温搅拌循环水箱、全自动医用包装生产线等先进生产设备，建设形成日产医疗器械、医疗防护用品等产品500万个（套）产能。","桂林市临桂区",{"v":2.2,"d":"2.20"},{"v":1.6,"d":"1.60"},"2021年11月","2024年10月",{"v":0.5,"d":"0.50"},"9.医药工业","高端化智能化绿色化改造项目"]
[{"$f":"SUBTOTAL(3,$B$80:B87)","v":8},"全州县粤桂纸业有限公司","粤桂纸业搬迁改造项目","项目分三期建设。一期建设建设2400纸机生产线一条，年产6万吨特种纸；二期建设1760、1880、2100、2200纸机生产线各一条，2640纸机生产线二条，年产3万吨特种纸和2万吨薄页纸；三期建设5600纸机生产线一条，年产10万吨高瓦纸。","桂林市全州县",{"v":2,"d":"2.00"},0.46,"2022年10月","2024年12月",0.29,"10.造纸与木材工业","增产增效项目"]
[{"$f":"SUBTOTAL(3,$B$80:B88)","v":9},"广西东维丰电子科技有限公司","直流无刷微电机产业化生产基地项目","项目占地80亩，新建标准厂房44000平方米，购置安装高新电子产品、CPU散热模组的动力驱动生产线33条。项目分二期建设，一期建设标准厂房27000平方米，建设高新电子产品、CPU散热模组的动力驱动生产线生产线23条；二期建设标准厂房17000平方米，安装高新电子产品、CPU散热模组的动力驱动生产线10条。","桂林市平乐县",{"v":1.6,"d":"1.60"},{"v":1.3,"d":"1.30"},"2021-02-01","2023年12月",{"v":0.3,"d":"0.30"},"7.电子工业","增产增效项目"]
[{"$f":"SUBTOTAL(3,$B$80:B89)","v":10},"桂林鑫晶琳食品有限公司","年产4万吨干米粉1.5万吨芋圆1万吨速冻食品建设项目","项目属于绿色食品产业链延链补链的食品建设项目。项目采用半自动化食品深加工生产工艺，研发制造干米粉、芋圆、速冻食品等产品。项目购置切丁机、芋圆机、榨粉机等先进设备，自动化程度打到90%，生产效率提高了90%，项目建成后可实现年产4万吨干米粉、1.5万吨芋圆及1万吨速冻食品产能。","桂林市全州县",{"v":1.2,"d":"1.20"},0.72,"2022-01-01","2024-06-01",{"v":0.2,"d":"0.20"},"8.食品工业","增产增效项目"]
[{"$f":"SUBTOTAL(3,$B$80:B90)","v":11},"广西南博万智能装备有限公司","智能制造和高新电子产业项目","项目规划用地130亩，总投资约1亿元，分二期进行，第一期乙方购买厂房和将原在深圳的机械设备及新购置的设备等搬迁至购置厂房开展研发、生产及加工，投资约3000万元。第二期投资约7000万元进行技改和厂房建设等。","桂林市平乐县",{"v":1,"d":"1.00"},{"v":0.7,"d":"0.70"},"2021-04-01","2023年12月",{"v":0.1,"d":"0.10"},"7.电子工业","补链强基项目"]
[{"$f":"SUBTOTAL(3,$B$80:B91)","v":12},"中国化工集团曙光橡胶工业研究设计院有限公司","航空轮胎技改（“十三五”关键材料条件建设项目）","本项目为航空轮胎的技改项目，重点针对航空轮胎模拟飞机起降、航空轮胎制造实施技术改造；项目新增工艺设备9台（套），改造设备1套，新增试验厂房1幢，新增建筑面积900平方米。","桂林市七星区横塘路55号",{"v":0.9,"d":"0.90"},{"v":0.9,"d":"0.90"},"2020年12月","2023年12月",{"v":0.1,"d":"0.10"},"5.石油化工","高端化智能化绿色化改造项目"]
[{"$f":"SUBTOTAL(3,$B$80:B92)","v":13},"桂林长发小寨生物科技有限公司","淘米水植物发酵提取生产技术改造项目","产能扩大：由原来1天生产1吨淘米水发酵扩大到每天生产5吨淘米水，洗发产品由原来每天生产1.5吨扩大为每天生产7.5吨。\n技术开发与质量提升：对自然发酵的菌种进行筛选培养，根据不同菌种的习性调整淘米水的制作工艺。植物由原来的单一水解发酵调整为植物分类提取，针对不同的植物提取液进行分类与淘米水发酵，提升植物功效利用率。\n设备改进：更新灌装设备，灌装生产能力由每班的1.5吨生产能力调整为每班3吨生产能力。乳化由每天生产6吨的乳化线通过增加乳化锅提升到每天生产9吨。","桂林市龙胜各族自治县",0.87,0.58,"2022-01-01","2023年12月",0.64,"9.医药工业","增产增效项目"]
[{"$f":"SUBTOTAL(3,$B$80:B93)","v":14},"桂林漓峰医药用品有限责任公司","桂林漓峰医药用品有限责任公司酒精分装扩建项目","项目计划新建标准厂房5栋及配套生活设施，项目涵盖医用消毒剂、家用消毒剂、医疗器械、家庭日化产品四大系列，其中新增医用消毒剂5条生产线、家用消毒剂2条生产线、1条家庭日化产品生产线（竹莹素抗菌洗手液）、1条医疗器械生产线（口罩生产线）以及1条配套包装材料生产线。项目完成后，年产消毒剂及家庭日化产品年产量可达3万吨，口罩年产量240万个。","桂林市灵川县",{"v":0.8,"d":"0.80"},{"v":0.6,"d":"0.60"},"2022-07-01","2024-07-01",0.15,"9.医药工业","增产增效项目"]
[{"$f":"SUBTOTAL(3,$B$80:B94)","v":15},"荔浦华越电子科技有限公司","LED支架器件封装自动化柔性生产线建设项目","项目以模具技术、冲压电镀技术、封装技术为基础，融合自动化和数字IT 化建设 LED 支架自动化生产线，建设10条卷对卷高速连续电镀铜镍银自动化生产线，其中建设9条镀铁基材高速连续电镀铜镍银自动化生产线，1条镀铜基材高速连续电镀铜镍银自动线。购买 LED 高速灌胶机、全自动高速焊线机等自动化智能设备。该生产线建成后具备 3000 万只/年的生产能力，解决LED支架生产能滞后的问题，实现LED 支架制造周期减少 20％，生产效率提升 70％。","荔浦市高新产业园区",{"v":0.6,"d":"0.60"},0.42,"2022-03-01","2024年12月",0.24,"7.电子工业","补链强基项目"]
[{"$f":"SUBTOTAL(3,$B$80:B95)","v":16},"桂林七星粉业食品科技有限责任公司","新建干制米粉生产项目","项目拟在桂林市临桂区会仙镇会仙工业园旅游休闲食品产业园回购1万平米标准厂房，采用江南大学与青岛海特佳智能科技有限公司国内首套PLC全自动控制干制米粉生产线，按照HACCP质量控制系统，从原材料入库到加工、包装、入库、出库的年生产能力20000吨规模的高端干制米粉生产线。预计总投资5000万元，年销售收入1亿元以上，创造利税800万以上。","桂林市临桂区会仙工业园",{"v":0.5,"d":"0.50"},{"v":0.2,"d":"0.20"},"2022-06-01","2023-06-01",0.32,"8.食品工业","增产增效项目"]
[{"$f":"SUBTOTAL(3,$B$80:B96)","v":17},"桂林日清食品有限公司","冲泡型营养米生产线项目","为达到冲泡型营养米的生产要求公司新建了1000多平方的营养米车间和1000平方的仓库，车间地面及墙面都进行了防尘处理并按照10万级的净化标准安装了净化设备。大米从原料粉碎、营养米配比混合、熟化、成型、分离、烘干、包装等过程都由设备自动完成。","桂林市临桂区",{"v":0.4,"d":"0.40"},0.28,"2020-06-01","2023-04-01",0.08,"8.食品工业","增产增效项目"]
[{"$f":"SUBTOTAL(3,$B$80:B97)","v":18},"桂林三花股份有限公司","白酒提升改造二期项目","项目利用现有土地，按照新的工艺要求，重点对糖化、蒸馏工序及二线蒸饭、发酵工序进行改造，计划引进行业最先进的理念，改进米香型白酒的技术和装备，对糖化、蒸馏设施及一线蒸饭、发酵设施进行改造提升，以及配套土建工作等，达到提高桂林三花酒产品质量，提升劳动效率、节能降耗、美化生产环境的目的。","桂林市象山区",0.22,0.12,"2022-06-01","2023年10月",0.22,"9.医药工业","增产增效项目"]
[{"$f":"SUBTOTAL(3,$B$80:B98)","v":19},"桂林市啄木鸟医疗器械有限公司","年产10万台高性能LED光固化机生产线改建项目","拟购置一批CNC数控车床、车床联网监控系统、激光焊接机、试制生产模具等先进设备。同时，全面推进精益生产项目工程，对生产布局、线平衡、生产计划等方面进行改善，形成年产10万台高性能LED光固化机的生产能力，创造良好的经济效益。","七星区",{"v":0.2,"d":"0.20"},0.18,"2022-06-01","2024-06-01",{"v":0.1,"d":"0.10"},"9.医药工业","增产增效项目"]
[{"$f":"SUBTOTAL(3,$B$80:B99)","v":20},"桂林量具刃具有新责任公司","300mm以下卡尺自动化生产线建设项目","项目主要通过实现300mm以内卡尺自动化生产，打破卡尺“一体成型”的传统工艺，通过“化整为零”让卡尺各部件实现精致的量化生产，然后再通过精密的组装技术把各个部件融为一体。项目计划订制20台左右的卡尺专用成型磨床；改装10台普通平面磨床为数控平面磨床；对卡尺机加工工艺流程进行自动化数控建设，实现300mm以内卡尺类产品机加过程的数字化及智能化，同步实现平面数控磨床的一人多机操作。","桂林市象山区",0.15,{"v":0.1,"d":"0.10"},"2021-01-01","2025年12月",0.04,"2.机械工业","增产增效项目"]
[{"$f":"SUBTOTAL(3,$B$80:B100)","v":21},"桂林漓江茶厂有限公司","漓江茶厂茶叶智能化生产线建设项目","扩建厂房面积5000平方米，引进清洁化六堡茶生产线1条，达到年生产能力150吨；引进桂花真空冷冻干燥生产线1条，达到年加工能力3吨桂花干；引进清洁化自动化桂花茶生产线1条，达到年加工能力20吨桂花茶；茶叶生产线配套设施。","龙胜县",0.13,0.08,"2022年12月","2023年12月",0.13,"8.食品工业","高端化智能化绿色化改造项目"]
[{"$f":"SUBTOTAL(3,$B$80:B101)","v":22},"桂林沛泽机电科技有限公司","精密五金零部件的数字化车间建设项目","数字化车间建设项目以工业自动化及智能生产为目标，按照智能生产要求，对公司生产管理进行信息化建设，从产品设计到产品生产制造、仓储、销售等环节实现数字化建设。通过购买购进车铣复合加工设备等自动化生产设备，采用一彩进销存管理系统、几禾 ERP 标准版企业管理软件系统，实现了从原料到产品关键技术节点自动化、智能化，缩短新产品开发周期、自动化水平和信息化管理能力。","桂林市七星区",0.12,0.08,"2021-05-01","2023-04-01",0.08,"2.机械工业","高端化智能化绿色化改造项目"]
[{"$f":"SUBTOTAL(3,$B$80:B102)","v":23},"桂林泓雅彩印包装有限公司","新增方底阀口袋第二条生产线项目","项目预计投资1000万元，新增阀口袋生产线：新增高效阀口袋机1台，拉丝机1组，印刷机2台高速圆织机18台等设备。项目建成后能年生产阀口袋5000万。","桂林市临桂区",{"v":0.1,"d":"0.10"},{"v":0.1,"d":"0.10"},"2022-01-01","2023年12月",0.03,"13.其他工业","增产增效项目"]
[{"$f":"SUBTOTAL(3,$B$80:B103)","v":24},"桂林灌阳千家洞天然饮料有限公司","扩建厂房仓库及新增设备技术改造","扩建厂房4000平米，新增设备智慧吹瓶机一套、在线品质监测系统一套、机器人码垛一套等机器设备。","桂林市灌阳县福星村",0.09,0.05,"2022-03-01","2023年12月",0.04,"8.食品工业","增产增效项目"]
["四","梧州市",{"$f":"SUBTOTAL(3,C105:C122)","v":{"v":18,"d":"18项"}},null,null,{"$f":"SUBTOTAL(9,F105:F122)","v":{"v":45.66639,"d":"45.67"}},{"$f":"SUBTOTAL(9,G105:G122)","v":{"v":34.67409,"d":"34.67"}},null,null,{"$f":"SUBTOTAL(9,J105:J122)","v":{"v":13.1825,"d":"13.18"}}]
[{"$f":"SUBTOTAL(3,$B$105:B105)","v":1},"广西翅冀钢铁有限公司","广西翅冀钢铁有限公司年产140万吨型钢热镀锌项","建筑面积48853.2平方米，建设14条型钢热镀锌（吹镀）机组，11条人工生产线，2条半自动生产线等。","梧州市临港经济区（循环园区）",{"v":8,"d":"8.00"},{"v":7.5,"d":"7.50"},"2023-05-01","2025-05-01",{"v":2,"d":"2.00"},"6.建材工业","增产增效项目"]
[{"$f":"SUBTOTAL(3,$B$105:B106)","v":2},"广西岑溪市龙湾矿业有限责任公司","佛子冲矿区龙湾矿段年采选80万吨铜铅锌矿技改扩建项目","项目采用国内先进技术对矿山井下通风系统、供水系统、供电系统及通讯系统等进行升级改造，引进先进生产设备和工艺，对破碎系统、浮选工艺流程、浓缩池、脱水系统、除尘系统进行升级改造，将现有600t/d铅锌矿选矿产能提升至2500t/d，达到年选矿量80万吨的生产能力。","梧州市岑溪市",{"v":6,"d":"6.00"},{"v":3,"d":"3.00"},"2022年10月","2024年12月",{"v":1,"d":"1.00"},"4.有色金属","增产增效项目"]
[{"$f":"SUBTOTAL(3,$B$105:B107)","v":3},"广西科丽能生态环境有限公司","梧州市桂东生态环保基地项目（一期）","项目采用国内先进的稳定化/固化处理工艺和物化处理工艺，对各类工业企业产生的固态、液态危险废物进行全方位覆盖的处理。项目一期经营规模为13万吨/年，其中物化处理1万吨/年（限液态），稳定固化（柔性填埋）9万吨/年，刚性填埋3万吨/年。","梧州市龙圩区",{"v":5.8,"d":"5.80"},{"v":5.1,"d":"5.10"},"2020-10-01","2024-01-01",{"v":0.8,"d":"0.80"},"13.其他工业","高端化智能化绿色化改造项目"]
[{"$f":"SUBTOTAL(3,$B$105:B108)","v":4},"广西梧州晶盛科技有限责任公司","梧州晶盛年产20万吨玻璃瓶罐生产项目","项目占地面积约200亩。建设原料区，配套办公楼、宿舍楼和食堂等公辅工程。购置及安装自动配料系统及辅助设备、玻璃窑炉及配套设备、行列机设备及配套系统、行列机冷风机设备等主要设备共90台（套）。项目建成后，具备年综合利用碎玻璃16万吨，年产玻璃瓶罐20万吨的生产能力。","梧州市苍梧县",{"v":5.3,"d":"5.30"},{"v":4.5187,"d":"4.52"},"2019-01-01","2024-01-01",{"v":2,"d":"2.00"},"13.其他工业","高端化智能化绿色化改造项目"]
[{"$f":"SUBTOTAL(3,$B$105:B109)","v":5},"广西震宇环保科技有限公司","年处理80万吨含铅锑锡再生综合利用项目（一期）","项目引进3条先进生产线，采用变压吸附制氧、富氧侧吹熔炼、粗铅火法精炼、板栅低温熔炼、铅精炼等先进技术，研发制造精铅、合金铅等新产品。项目建设拆解车间、熔炼及精炼车间、合金车间、碱渣回收车间、制酸车间、制氧站各1套，购置熔炼系统、富氧侧吹炉、铅精炼系统等先进系统及配套设备各1套，项目建设完成后，可实现含铅锑锡物料年处理80万吨的生产能力。","梧州市临港经济区（循环园区）",{"v":3.01539,"d":"3.02"},{"v":2.31539,"d":"2.32"},"2021-04-01","2023年12月",{"v":1.2,"d":"1.20"},"4.有色金属","高端化智能化绿色化改造项目"]
[{"$f":"SUBTOTAL(3,$B$105:B110)","v":6},"梧州市毅马五金制品有限公司","PC钢棒用合金钢热轧盘条技改项目","本技改项目利用原有电弧炉、精炼炉和连铸设施设备，对连铸生产线改造升级，新增一条热送连轧高线生产线，增加电磁搅拌装置，结晶器液面自动控制，长水口保护浇注，生产优质合金钢热轧盘条，生产合金钢。充分利用原有产能优势，达到满负荷生产，可年产PC钢棒用合金钢热轧盘条25-30万吨，产值约30亿元。","梧州市临港经济区",{"v":3,"d":"3.00"},{"v":2.5,"d":"2.50"},"2022-05-01","2023-06-01",{"v":1.7,"d":"1.70"},"6.建材工业","增产增效项目"]
[{"$f":"SUBTOTAL(3,$B$105:B111)","v":7},"广西恒特新材料科技有限责任公司","陶瓷配料生产项目","项目采用公司自主知识产权“一种硅酸锆包裹型陶瓷色料的制备方法”等10项专利技术，研发制造铁黑粉、陶瓷色料、陶瓷熔块等陶瓷配料。项目购置鄂式破碎机、球磨机、回转窑等先进设备，建设形成年产活性铁黑粉1.1万吨、陶瓷咖啡色、黑色、枯黄1.5万吨、䦅黄5000吨、熔块1.5万吨的产能。","梧州市岑溪市",2.75,1.13,"2020-03-01","2024-06-01",{"v":0.5451,"d":"0.55"},"13.其他工业","增产增效项目"]
[{"$f":"SUBTOTAL(3,$B$105:B112)","v":8},"梧州市永达钢铁有限公司","不锈钢棒线材多产品共线轧钢生产工艺技术改造项目","公司进行技术改造，利用原有的老厂房和部分生产设施,前端共用加热炉和粗轧、中轧机组，利用自主设计的工艺转换枢纽方案，设计国内首套不锈钢棒线材多产品共线轧钢生产工艺，实现后端差异化生产。主要建设内容包括加热炉1座，粗轧机6台、中轧机6台，工艺转换枢纽2座，棒材精轧机4台、减定径机组1台、线材预精轧机组1套，线材精轧机1台、大盘卷精轧机1台以及配套供电、供气、水处理、稀油站和厂房、行车改造等。","长洲不锈钢制品产业园区",{"v":2,"d":"2.00"},{"v":1,"d":"1.00"},"2021-03-01","2023-05-01",{"v":0.4,"d":"0.40"},"3.冶金工业","高端化智能化绿色化改造项目"]
[{"$f":"SUBTOTAL(3,$B$105:B113)","v":9},"广西昭信平洲电子有限公司","电子元器件磁铁芯制造技改项目","项目在原厂址扩建六层车间1栋及附属建筑，导入5条铁氧体磁芯制造生产线、CLF-NI产品新增3条生产线。项目生产铁氧体磁芯并通过CLF-NI自动化生产线制造车用电感产品。产品供应于汽车发动机、安全气囊、刹车等安全部件的控制使用。电感产品应用于汽车制造各个环节，在汽车制造产业链中处于重要地位。项目的实施有利于电感产品生产的自主化、本地化生产。达产后磁芯年产量15600万只，电感产品产能增加2000万只/年，新增年产值1.2亿元。","梧州市龙圩区",{"v":1.991,"d":"1.99"},{"v":1.8,"d":"1.80"},"2022-02-01","2023年11月",{"v":0.6,"d":"0.60"},"7.电子工业","增产增效项目"]
[{"$f":"SUBTOTAL(3,$B$105:B114)","v":10},"梧州市永达钢铁有限公司","永达钢铁集团“5G+工业互联网”数字智能工厂一体化系统项目","利用5G+工业互联网、云计算和自动化控制等技术，建设5G+工业互联网络系统、MES制造执行系统等软硬件系统，覆盖从原料采购、生产制造到产品用户终端全链条，实现数据采集自动化、数据处理云端化、生产调度自动化、生产控制智能化、品控检化验自动化、业务流程规范化、上下游管理精准化、资源利用最大化和上下游产业链数据共享，提升制造装备智能化水平，建成永达集团云端数字智能化工厂。","长洲不锈钢制品产业园区",{"v":1.7,"d":"1.70"},{"v":1.5,"d":"1.50"},"2022-01-01","2025年12月",{"v":0.4,"d":"0.40"},"3.冶金工业","高端化智能化绿色化改造项目"]
[{"$f":"SUBTOTAL(3,$B$105:B115)","v":11},"梧州市同创新能源材料有限公司","年产38000吨锂电池负极材料生产制造扩建项目","建筑面积30000平方米，计划建设　提纯车间、粉碎车间、烘干车间、碳化车间、成品车间、磨粉车间、仓库和办公室，主要设备包括：反应釜、压滤机、离心机、环保水处理设施、烘干窑炉、闪蒸炉、碳化窑炉、环保气处理设施、混合机、除磁机、筛料机、粉碎机、分级机、整形机、磨粉机、空压机、粉尘收集设施，项目完成后，预计年产　锂电池负极材料38000吨。","粤桂合作特别试验区(高新\n片区)",{"v":1.5,"d":"1.50"},{"v":0.5,"d":"0.50"},"2022-08-01","2024年12月",{"v":0.5,"d":"0.50"},"13.其他工业","补链强基项目"]
[{"$f":"SUBTOTAL(3,$B$105:B116)","v":12},"梧州通达农牧科技有限公司","苍梧县生猪屠宰加工配送物流中心项目","项目购买土地69.6亩，按国家生猪屠宰标准化示范厂要求，新建待宰/屠宰/冷库/分割车间、检疫检验室、肉制品/预制菜加工车间及产品展示楼，配套冷链物流配送中心、废弃物污水处理中心等设施。购买机器人自动劈半机、三点式电麻输送机（国家发明专利）、胴体加工自动线、全自动核酸提取仪及荧光定量PCR分析系统等先进设备，新建生猪屠宰自动化生产线，达到年屠宰生猪50万头的规模，年产各类副产品5万吨。","梧州市苍梧县",{"v":1.1,"d":"1.10"},{"v":1,"d":"1.00"},"2022-01-01","2024-02-01",{"v":0.8,"d":"0.80"},"8.食品工业","增产增效项目"]
[{"$f":"SUBTOTAL(3,$B$105:B117)","v":13},"广西梧州市金海不锈钢有限公司","梧州市金海不锈钢数字一体化系统项目","采用人工智能模型、大数据等技术，建设信息数字化一体化平台，梳理、整合、优化企业业务流程，体现协同、高效、灵活等特点，达到“产销一体、管控一体、业财一体”数字化提升管理的目标。解决信息化基础薄弱，数据的可靠性和及时性得不到保证的问题，形成业务流程规范化、生产管理精细化、企业运作高效化、企业信息透明化。","梧州市长洲区",1.05,{"v":0.7,"d":"0.70"},"2022-03-01","2024-03-01",{"v":0.5,"d":"0.50"},"3.冶金工业","高端化智能化绿色化改造项目"]
[{"$f":"SUBTOTAL(3,$B$105:B118)","v":14},"广西欧神诺陶瓷有限公司","欧神诺智能化大板陶瓷技改项目","项目填补广西大板线以及窑炉余热利用领域空白，采用窑炉窑尾余热利用，制造陶瓷大板等新产品。项目购置宽体窑、西斯特姆等先进设备，建设形成年产900万平方米抛釉砖。项目实施单位欧神诺是行业一线品牌，广西欧神诺现有专利22件，欧神诺集团持有有效专利超过100件。","梧州市藤县",{"v":1,"d":"1.00"},{"v":1,"d":"1.00"},"2021-09-01","2023-06-01",{"v":0.1,"d":"0.10"},"6.建材工业","增产增效项目"]
[{"$f":"SUBTOTAL(3,$B$105:B119)","v":15},"藤县飞乐电子科技有限公司","年产300万平方米低压化成箔技术改造项目","项目采用带状箔材高效生产工艺等先进技术，研发制造电极箔材料新产品。项目通过自主设计建设10条低压化成生产线、3条导箔生产线，购置成套纯水生产设备、分离回收设备、新增35千伏高压供配电设施等先进设备，建设形成年产低压化成箔300万平方米生产能力。","梧州市藤县",{"v":0.6,"d":"0.60"},0.45,"2023-05-01","2024年12月",{"v":0.3,"d":"0.30"},"7.电子工业","高端化智能化绿色化改造项目"]
[{"$f":"SUBTOTAL(3,$B$105:B120)","v":16},"梧州市万顺锻压机床厂有限公司","大型精密汽车制造装备生产车间技改项目","本项目进行大型精密汽车制造装备的生产线改造升级，项目计划建设重型生产厂房1栋，土建面积约8千平方米。新增购置一批国内先进的自动化高精尖生产与检测设备，主要设备包括：数控切割机、焊接机器人、激光测量仪器、新型数控机床等，用于生产新产品:大型精密数控压力机，项目实施后预计可形成年产100台(套)的生产能力。","粤桂合作特别试验区(高新\n片区)",0.51,0.36,"2022-01-01","2024-06-01",{"v":0.2,"d":"0.20"},"2.机械工业","高端化智能化绿色化改造项目"]
[{"$f":"SUBTOTAL(3,$B$105:B121)","v":17},"广西浔味食品科技有限公司","年产3000吨米面制品加工生产线技术改造项目","公司占地16亩，项目改建鲜湿米粉、干米粉2条米面制品加工生产线，新购置自动淘米机、磨浆机、蒸粉机、烘干机、干预机、老化机、切粉机、包装机等生产设备。","梧州粤桂试验合作区",{"v":0.2,"d":"0.20"},0.16,"2020年11月","2023-06-01",{"v":0.0499,"d":"0.05"},"8.食品工业","增产增效项目"]
[{"$f":"SUBTOTAL(3,$B$105:B122)","v":18},"梧州市联溢化工有限公司","电解节能改造项目","项目对电解生产装置进行节能改造，增加一台电解槽作为调峰电解槽，错峰用电，实现电解装置节约用电，节能减碳。主要产品生产规模不变。","梧州市万秀区",0.15,0.14,"2023-01-01","2023-04-01",{"v":0.0875,"d":"0.09"},"5.石油化工","高端化智能化绿色化改造项目"]
["五","北海市",{"$f":"SUBTOTAL(3,C124:C130)","v":{"v":7,"d":"7项"}},null,null,{"$f":"SUBTOTAL(9,F124:F130)","v":{"v":10.549383,"d":"10.55"}},{"$f":"SUBTOTAL(9,G124:G130)","v":{"v":7.415262,"d":"7.42"}},null,null,{"$f":"SUBTOTAL(9,J124:J130)","v":{"v":3.1446,"d":"3.14"}}]
[{"$f":"SUBTOTAL(3,$B$124:B124)","v":1},"北海惠昌智能科技有限公司","惠科液晶显示屏模组项目二期","项目拟建设9条液晶屏组模生产线及相关配套设施，建成后达到年产MNT模组液晶显示面板1000万片的生产能力。","北海市经开区",{"v":3.5,"d":"3.50"},{"v":2,"d":"2.00"},"2022-01-01","2024-12-01",{"v":0.5,"d":"0.50"},"7.电子工业","增产增效项目"]
[{"$f":"SUBTOTAL(3,$B$124:B125)","v":2},"鲜美来食品股份有限公司","海洋食品产业化项目","项目拟新建生产基地，总占地面积为19,897.1平方米，总建筑面积为37,373.1平方米，主要建筑物包括1#海洋食品深加工车间、配套生活楼、污水处理站、门卫室、2#海洋食品深加工车间。为保证本项目的顺利开展，公司拟新增设备共470台（套），拟新增软件系统2套，项目建成后拟新增人员442人。建成后将新增虾仁类产品1.2万吨，虾滑类产品1.8万吨。","北海市经开区",{"v":2.947383,"d":"2.95"},{"v":2.463262,"d":"2.46"},"2020-12-01","2023-12-01",{"v":1,"d":"1.00"},"8.食品工业","增产增效项目"]
[{"$f":"SUBTOTAL(3,$B$124:B126)","v":3},"北海瑞电智能设备有限公司","水电解净化医疗电器产品先进制造项目","通过先进的全机器人自动化生产线替代传统的人工组装生产线，达到提高生产效率，提升产品品质，降低生产成本的目标。","北海市综保区",{"v":2,"d":"2.00"},{"v":1.2,"d":"1.20"},"2022-01-01","2023-12-01",{"v":0.8,"d":"0.80"},"7.电子工业","高端化智能化绿色化改造项目"]
[{"$f":"SUBTOTAL(3,$B$124:B127)","v":4},"北海玖嘉久食品有限公司","广西优势食品智能冷链物流及配套工程建设项目","项目新建大型食品智能冷库1栋，购买相应的生产设备，做好配套设备等等。建设新型食品原料和成品仓库、新型研发中心，该中心将以玖嘉久食品有限公司为主体，与自然资源部第四海洋研究所、日本北海道大学联合承担自治区科技重大研发项目--“中国-日本新型海洋食品研发（国际）联合实验室建设”。建设广西优势食品相关的配套生产车间1栋。","北海市经开区",{"v":1,"d":"1.00"},{"v":0.8,"d":"0.80"},"2022-01-01","2023-12-01",{"v":0.6,"d":"0.60"},"8.食品工业","增产增效项目"]
[{"$f":"SUBTOTAL(3,$B$124:B128)","v":5},"广西康鸿泰家居科技有限公司","智能家居康养生产线项目","主要购置全自动数显温控隧道成型炉等设备，检测浴缸一体成型生产线，年产浴缸5000套","北海市综保区",{"v":0.8,"d":"0.80"},{"v":0.7,"d":"0.70"},"2021-01-01","2023-12-01",0.13,"7.电子工业","高端化智能化绿色化改造项目"]
[{"$f":"SUBTOTAL(3,$B$124:B129)","v":6},"北海市三富影音制品有限公司","智能终端精密零部件产品技术改造项目","项目在公司现有研发创新环境和设备基础上，购置三机一体除湿干燥机等设备，采用触控式人机，加热并施加高压等技术形成电子信息类产品的注塑、喷涂、SMT、包材、喇叭等配套零部件：注塑及喷涂塑胶件500万套，PCBA电路板600万片，全尺寸包材750万套，全频喇叭700万只。","北海市经开区",0.25,{"v":0.2,"d":"0.20"},"2020-06-01","2023-06-01",{"v":0.0726,"d":"0.07"},"7.电子工业","高端化智能化绿色化改造项目"]
[{"$f":"SUBTOTAL(3,$B$124:B130)","v":7},"北海高岭科技有限公司","北海高岭科技有限公司清洁能源煤改气项目","项目主要建设内容：新建天然气燃烧供热系统代替燃煤系统，配套的余热回收及消防安全系统。","北海市合浦县",{"v":0.052,"d":"0.05"},{"v":0.052,"d":"0.05"},"2021-06-01","2023-06-01",{"v":0.042,"d":"0.04"},"13.其他工业","高端化智能化绿色化改造项目"]
["六","防城港市",{"$f":"SUBTOTAL(3,C132:C146)","v":{"v":15,"d":"15项"}},null,null,{"$f":"SUBTOTAL(9,F132:F146)","v":{"v":82.056,"d":"82.06"}},{"$f":"SUBTOTAL(9,G132:G146)","v":{"v":44.696,"d":"44.70"}},null,null,{"$f":"SUBTOTAL(9,J132:J146)","v":{"v":19.446,"d":"19.45"}}]
[{"$f":"SUBTOTAL(3,$B$132:B132)","v":1},"广西金川有色金属有限公司","广西金川公司铜系统工艺及数字化升级项目","项目充分利用原有生产设备设施，对铜冶炼系统进行升级扩建，主要采用国际领先水平的“侧吹熔炼+多枪顶吹吹炼”冶炼工艺，扩建一套30万吨/年铜冶炼系统，项目建成后年产阳极板30万吨，硫酸124万吨。","防城港市港口区企沙镇企沙工业区",49.18,21.35,"2022年","2024年",{"v":5.2,"d":"5.20"},"4.有色金属","增产增效项目"]
[{"$f":"SUBTOTAL(3,$B$132:B133)","v":2},"广西国电交通设施有限公司","国电标准件智能制造项目","建设交通设施标准件总部基地，产能为50万吨/年。","防城港市企沙工业园",{"v":10.8,"d":"10.80"},8.64,"2020-05-01","2024-05-01",{"v":1.5,"d":"1.50"},"13.其他工业","补链强基项目"]
[{"$f":"SUBTOTAL(3,$B$132:B134)","v":3},"防城港华隆耐火材料有限公司","华隆功能环保性耐火新材料生产基地项目","本项目从事钢流控制高端功能环保性耐火材料制品（高效连铸三大件产品）生产（塞棒、长水口和中间包快换下水口），项目建成连铸用三大件生产线两条，项目采用数字化、自动化、绿色化生产工艺，配合智能生产系统自动化生产线。","广西防城港市企沙工业区",{"v":6,"d":"6.00"},4.26,"2023-01-01","2027-12-01",{"v":4.1,"d":"4.10"},"13.其他工业","高端化智能化绿色化改造项目"]
[{"$f":"SUBTOTAL(3,$B$132:B135)","v":4},"广西钢铁集团有限公司","广西钢铁冷轧厂新增精整机组工程","建设27座罩式退火炉、一条单机架平整机组、两条重卷拉矫机组和一条半自动包装机组，促进镀锌机组和连退机组品种优化升级。","防城港市经开区",{"v":3.9,"d":"3.90"},2.17,"2022-12-01","2024-06-01",{"v":2,"d":"2.00"},"3.冶金工业","增产增效项目"]
[{"$f":"SUBTOTAL(3,$B$132:B136)","v":5},"广西钢铁集团有限公司","广西钢铁冷轧厂酸洗机组工程","为针对市场需求，积极开发热轧酸洗商品板，逐步提高冷轧产品的种类和品质以创造更多效益，拟新增100万吨连续酸洗机组项目。 本工程年产能为100万吨,包括一条连续酸洗机组和一条半自动包装机组。","防城港市经开区",{"v":3.5,"d":"3.50"},1.85,"2022-09-01","2024-03-01",{"v":2.5,"d":"2.50"},"3.冶金工业","补链强基项目"]
[{"$f":"SUBTOTAL(3,$B$132:B137)","v":6},"广西小藻农业科技有限公司","防城港微藻医药加工产业基地技改及扩建项目","扩建一期微藻加工基地，进一步扩建生产车间与厂房、增建加工提炼生产线、完善厂区与配套设施，建立全链条的深加工提炼原料药级别EPA以及保健品终端产品生产线。","防城港市港口区",{"v":2,"d":"2.00"},{"v":1.7,"d":"1.70"},"2022-10-01","2023-12-01",{"v":1.3,"d":"1.30"},"9.医药工业","补链强基项目"]
[{"$f":"SUBTOTAL(3,$B$132:B138)","v":7},"广西美控电器有限公司","自动化智能制造","项目利用温控智能除霜控制系统”等专利新技术，研发制造大气治理设备（包含油烟治理和工业废气治理）,节能减排厨电、电子控制系统等新产品。项目建设形成年产商用变频冷柜1000台，大气治理设备（包含油烟治理和工业废气治理）2510台、万能蒸烤箱1500台、商用电磁烹饪设备5000台、电子控制系统20000套。","东兴市",{"v":2,"d":"2.00"},{"v":0.8,"d":"0.80"},"2021-03-01","2023-12-01",{"v":0.5,"d":"0.50"},"13.其他工业","高端化智能化绿色化改造项目"]
[{"$f":"SUBTOTAL(3,$B$132:B139)","v":8},"广西魏码实业有限公司","防城港冶金装备制造项目","项目占地50亩，厂房面积约2万平方米，建设生产车间、装配车间等公用和辅助工程，购进120台套全自动精密数字专用设备，年产3万吨铸钢铸铁等冶金机械装备、高合金钢铁铸件、机加工备品备件、铆焊件及其它机械设备加工铸造等。","防城港市港口区经济技术开发区",{"v":1.8,"d":"1.80"},1.44,"2021-06-01","2023-06-01",{"v":0.7,"d":"0.70"},"3.冶金工业","增产增效项目"]
[{"$f":"SUBTOTAL(3,$B$132:B140)","v":9},"广西钢铁集团有限公司","广西钢铁炼钢厂钢轧余热回收利用工程（一期）","为有效回收防钢基地富余蒸汽的能源，提高全厂环境效益及经济效益，进而响应国家碳达峰、碳中和政策，拟对防钢基地（一期）钢后系统富余饱和蒸汽进行回收利用，产出电能供厂区使用，提高余热利用经济效益。","防城港市经开区",0.76,0.47,"2023-05-01","2024-02-01",{"v":0.2,"d":"0.20"},"3.冶金工业","补链强基项目"]
[{"$f":"SUBTOTAL(3,$B$132:B141)","v":10},"东兴市得福实业有限公司","东兴市洪福农副产品精加工项目","项目建设内容深加工生产车间、办公楼、员工宿舍、员工饭堂土建工程以及配套水电、道路、绿化等设施，购置生产线及相关设备，购置生产线一套及相关生产设备，形成年加工胡椒10000吨生产能力。","防城港市东兴市",0.68,0.68,"2023-01-01","2024-12-01",0.15,"8.食品工业","增产增效项目"]
[{"$f":"SUBTOTAL(3,$B$132:B142)","v":11},"广西壮泉康养科技有限公司","500t/a保健酒生产项目","项目总建筑面积7460平方米，其中：办公楼380平方米、生产车间800平方米、灌装车间800平方米、中间产品车间1000平方米、成品仓库1500平方米，产品展厅600平方米、应急水池100平方米、停车场1200平方米、旅客接待中心500平方米。采用工艺为：不直接生产白酒，通过购买原材料（白酒、药材），再经过传统炮制加工出成品。","防城港上思县",{"v":0.5,"d":"0.50"},{"v":0.4,"d":"0.40"},"2020-09-01","2023-12-01",0.47,"8.食品工业","增产增效项目"]
[{"$f":"SUBTOTAL(3,$B$132:B143)","v":12},"广西金川有色金属有限公司","广西金川公司电解系统扩能挖潜技术改造项目（二期）","本项目对一期40万吨\"双闪\"系统进行匹配升级,优化利用电解预留机组位置，扩建80台电解槽、1台电解液压滤机、1台硅整流装置、1套电积铜输送系统,项目建成后 ，年可新增阴极铜产能2.64万t，新增产值14.26亿元,一期系统将达到50万吨阴极铜生产能力。","防城港市港口区企沙镇企沙工业区",0.41,0.41,"2022-12-01","2024-12-01",{"v":0.3,"d":"0.30"},"4.有色金属","高端化智能化绿色化改造项目"]
[{"$f":"SUBTOTAL(3,$B$132:B144)","v":13},"广西钢铁集团有限公司","广西钢铁固废料场气膜棚项目","在防钢基地预留发展用地上建一座气膜棚固废料场，料棚长约132m，宽约130m，并配套除尘雾炮、排气除尘及视频监控、消防洗车、给排水系统等。","防城港市经开区",{"v":0.236,"d":"0.24"},{"v":0.236,"d":"0.24"},"2022-05-01","2023-06-01",{"v":0.236,"d":"0.24"},"3.冶金工业","补链强基项目"]
[{"$f":"SUBTOTAL(3,$B$132:B145)","v":14},"广西钢铁集团有限公司","广西钢铁棒线厂基于5G技术的棒、线材无人行车及智能库管系统建设（一期）项目","将3个库区现有的6台起重机进行自动化改造升级，搭建行车位置跟踪系统和库管系统，利用5G专网用于库区数据传递，优化成品发货及吊运工作步骤，实现无人仓库。","防城港市经开区",0.17,0.17,"2022-06-01","2023-06-01",0.17,"3.冶金工业","高端化智能化绿色化改造项目"]
[{"$f":"SUBTOTAL(3,$B$132:B146)","v":15},"广西糖业集团昌菱制糖有限公司","生产线智能化和节能减排技术改造项目","项目通过设备能效提升改造、对污水处理系统升级改造，达到节约能源、保护环境、推动经济社会可持续发展的目的，以及提升生产设备自动化程度，提高企业发展能力。包括节能减排优化、智能优化升级、提效升级等建设内容。","防城港市上思县",0.12,0.12,"2021-10-01","2023-02-01",0.12,"8.食品工业","高端化智能化绿色化改造项目"]
["七","钦州市",{"$f":"SUBTOTAL(3,C148:C157)","v":{"v":10,"d":"10项"}},null,null,{"$f":"SUBTOTAL(9,F148:F157)","v":{"v":27.9696,"d":"27.97"}},{"$f":"SUBTOTAL(9,G148:G157)","v":{"v":17.5446,"d":"17.54"}},null,null,{"$f":"SUBTOTAL(9,J148:J157)","v":10.95}]
[{"$f":"SUBTOTAL(3,$B$148:B148)","v":1},"广西锆业科技有限公司","广西锆业科技有限公司60万吨/年锆钛稀有金属复合资源综合加工项目","项目主要建设办公楼2832.32平方米，宿舍楼4498.12平方米，原矿储存车间11064.96平方米，钛矿车间23323.20平方米，重选、电选车间19975.77平方米，卫生间1#计量室54平方米，水泵房及消防泵房247.64平方米。","钦州市钦南区金窝工业园",10.21,{"v":3,"d":"3.00"},"2023-04-01","2024年12月",{"v":1.8,"d":"1.80"},"4.有色金属","增产增效项目"]
[{"$f":"SUBTOTAL(3,$B$148:B149)","v":2},"广西自贸区宏坤新材料科技有限公司","宏坤新材料粗苯加氢项目","项目主要新建20万吨/年粗苯加氢装置，含20万吨/年加氢精制单元、18万吨/年芳烃抽提单元、3000标立方/小时甲醇制氢、1000吨/年硫回收单元等，配套公用工程及储运系统，研发中心及环境监测站、生产办公楼及中央控制室等其它生产辅助设施。","自贸区钦州港片区",{"v":7.2276,"d":"7.23"},{"v":6.3865,"d":"6.39"},"2022-07-01","2024-04-01",{"v":4.5,"d":"4.50"},"5.石油化工","增产增效项目"]
[{"$f":"SUBTOTAL(3,$B$148:B150)","v":3},"广西新天德能源有限公司","30万吨/年醇基新材料一体化项目","项目主要建设DEC/EMC5万吨/年生产线、甲胺10万吨/年生产线、DMF10万吨/年生产线、甲酰胺1.9万吨/年生产线、DEC/EMC10万吨/年生产线。","自贸区钦州港片区",{"v":6.5769,"d":"6.58"},{"v":5.5136,"d":"5.51"},"2022-01-01","2023-06-01",{"v":2,"d":"2.00"},"5.石油化工","增产增效项目"]
[{"$f":"SUBTOTAL(3,$B$148:B151)","v":4},"广西钦州蓝岛环保材料有限公司","钦州蓝岛工业固废处置项目（钦州蓝岛工业固废处置及综合利用搬迁&改造升级项目）","项目总投资14991万元，主要建设：2条年产45万吨φ3.2m*13m闭路磨生产线；年产30万吨HRM2200S立式工业微粉粉磨整体搬迁生产线；年处理量180万吨T-Sepax-VⅢ分选回收Ⅱ级粉煤灰生产线。","自贸区钦州港片区",{"v":1.4991,"d":"1.50"},{"v":0.5956,"d":"0.60"},"2022-09-01","2024-09-01",{"v":0.6,"d":"0.60"},"13.其他工业","增产增效项目"]
[{"$f":"SUBTOTAL(3,$B$148:B152)","v":5},"广西钦州保税港区双胞胎生物科技有限公司","双胞胎年产50万吨现代化饲料暨全球粮食贸易加工项目（一期项目）","项目占地面积约50亩，拟扩建年产50万吨的现代化饲料生产线。一期总投资1亿元，拟建主车间、原料车间、成品车间等，购置SAP系统、PLC设备、双轴桨叶高效混合机、饲料成套加工设备等设备，采用全自动、全电脑自动配料系统，提高饲料配合比例，完成饲料生产线的自动化智能化升级改造。","自贸区钦州港片区",{"v":1,"d":"1.00"},0.81,"2022-06-01","2023-06-01",{"v":0.8,"d":"0.80"},"8.食品工业","增产增效项目"]
[{"$f":"SUBTOTAL(3,$B$148:B153)","v":6},"广西百菲乳业股份有限公司","百菲乳业年产28万吨液态奶附属配套设施扩建项目","为扩大企业产能，提高生产效率，项目在原厂房基础上新增用地面积29157.46平方米，建筑面积约24000平方米，建设内容包括扩建厂房、仓库、宿舍等配套设施。","钦州市灵山县十里工业园",{"v":0.6,"d":"0.60"},{"v":0.5,"d":"0.50"},"2022-07-01","2023-06-01",{"v":0.5,"d":"0.50"},"8.食品工业","增产增效项目"]
[{"$f":"SUBTOTAL(3,$B$148:B154)","v":7},"钦州南海化工有限公司","硫酸锰生产线控制系统信息化建设项目","项目引进先进设备，对原年产5万吨高纯硫酸锰进行生产管理数字化、智能化技术改造。新增一套硫酸锰生产线中控系统，采用信息化控制技术，建设硫酸锰全流程数字化生产线，通过信息化总控系统精准控制硫酸锰生产过程，实现硫酸锰生产管理数字化、智能化。","钦州市钦北区",0.25,0.23,"2022-04-01","2023年12月",{"v":0.2,"d":"0.20"},"13.其他工业","增产增效项目"]
[{"$f":"SUBTOTAL(3,$B$148:B155)","v":8},"广西浦北美精工艺品有限公司","宝丽龙成型公仔工艺生产项目","该项目主要股东原在广东中山生产成型公仔工艺品，在浦项目属于中山市产能转移迁建改造项目，租用标准厂房7800平方米，主要设计开发及建设工艺精品生产线，以及配套的水电、消防等设施。","钦州市浦北县福旺产业园",0.25,0.25,"2023-01-01","2023-06-01",{"v":0.2,"d":"0.20"},"11.纺织服装与皮革","增产增效项目"]
[{"$f":"SUBTOTAL(3,$B$148:B156)","v":9},"广西远大玻璃节能科技股份有限公司","超大安全节能环保玻璃材料深加工生产项目","项目引进先进设备扩大产品规格，提高设备的自动化性能。通过引进超大全自动切割生产线一条、磨边生产线一条、超大钢化玻璃生产线、超大中空玻璃生产线，超大夹层玻璃生产线、超大高温数码彩釉玻璃生产线，使得玻璃产成品规格的宽度提高到3700mm，高度提高到12000mm，同时提高设备的自动化性能。","钦州市钦北区皇马工业园一区",{"v":0.2,"d":"0.20"},0.12,"2021年12月","2023-01-01",{"v":0.2,"d":"0.20"},"6.建材工业","增产增效项目"]
[{"$f":"SUBTOTAL(3,$B$148:B157)","v":10},"灵山县桂源木业有限公司","年产4.5万立方米胶合板生产线扩建项目","为增加企业生产效能，改善产品质量，提高企业生产效率，本项目主要扩建厂房建筑面积1500㎡，新购置生产设备12台（套），形成新增年产4.5万立方米胶合板生产能力生产线。","钦州市灵山县平山镇",{"v":0.156,"d":"0.16"},{"v":0.1389,"d":"0.14"},"2022-04-01","2023-03-01",0.15,"10.造纸与木材工业","增产增效项目"]
["八","贵港市",{"$f":"SUBTOTAL(3,C159:C173)","v":{"v":15,"d":"15项"}},null,null,{"$f":"SUBTOTAL(9,F159:F173)","v":25.25},{"$f":"SUBTOTAL(9,G159:G173)","v":{"v":18.9,"d":"18.90"}},null,null,{"$f":"SUBTOTAL(9,J159:J173)","v":{"v":9.2,"d":"9.20"}}]
[{"$f":"SUBTOTAL(3,$B$159:B159)","v":1},"广西和利涂料有限公司","年产5万吨环保新型合成树脂和3万吨新型油漆生产项目","项目用地约147亩，建设生产厂房，仓库，办公楼，购置及安装设备，建设配套设施，建成可年产合成树脂50000吨/年，各类工业漆30000吨/年的生产线，生产高级汽车用漆，给广西的汽车行业近距离提供涂料配套，做好汽车行业产业链供应，助力广西汽车行业发展。","贵港市覃塘区覃塘产业园",{"v":5,"d":"5.00"},{"v":3.5,"d":"3.50"},"2021年4月","2023年8月",{"v":1.5,"d":"1.50"},"5.石油化工","高端化智能化绿色化改造项目"]
[{"$f":"SUBTOTAL(3,$B$159:B160)","v":2},"广西贵港市博泰五金加工有限公司","年产360万套电动车配件及组装生产基地项目","项目规划用地面积50亩，项目建设4栋标准厂房，建筑面积23588平方米，办公楼、综合生活楼建筑面积为6670平方米，原料间150平方米，调漆间450平方米，配电房200平方米，门卫室20平方米，并配套建设室外工程，生产线设备安装，污水处理池，废气处理系统、危险废物暂存间等配套环保工程。项目总投资30000万元，其中固定资产投资20000万元。","贵港市覃塘区石卡园",{"v":3,"d":"3.00"},{"v":2,"d":"2.00"},"2022-12-01","2024-12-01",{"v":1.5,"d":"1.50"},"2.机械工业","补链强基项目"]
[{"$f":"SUBTOTAL(3,$B$159:B161)","v":3},"广西迈柏装饰材料制造有限公司","年产生态板800万张项目","项目占地约100亩，总投资2.7亿元，其中一期投资1.5亿元万元。项目一期主要建设标准生产厂房、仓库、办公楼及配套生产生活服务设施,通过购置导热油燃气加热器、快速贴面生产线、成品锯边机、预压机、热压机、砂光机、自动送料机、冷压机、涂料机、单张翻板连线、排版线、对接齿接机、横拼机等先进设备，采用全自动化生产设备，建设形成年产400万张生态板生产线，新增年产值2亿元。","贵港市覃塘区绿色家居产业园",{"v":2.7,"d":"2.70"},{"v":2.2,"d":"2.20"},"2022-08-01","2023-12-01",{"v":0.3,"d":"0.30"},"10.造纸与木材工业","增产增效项目"]
[{"$f":"SUBTOTAL(3,$B$159:B162)","v":4},"贵港市嘉好木业有限公司","年产10万M3多层实木生态板项目","主要包括建设生产车间和仓库68400平方米，办公综合楼3200平方米，绿化工程积2000平方米，门卫室、配电室、公厕等辅助用房250平方米，购置安装热压机、冷压机、调胶机、锯边机、砂光机、起重叉车、除尘系统等机械设备，以及配套设施建设。","贵港市港南区新塘工业园区",{"v":2.3,"d":"2.30"},{"v":1.9,"d":"1.90"},"2023-01-01","2024-06-01",{"v":0.8,"d":"0.80"},"10.造纸与木材工业","增产增效项目"]
[{"$f":"SUBTOTAL(3,$B$159:B163)","v":5},"广西贵港市慕晨木业有限公司","年产8万立方米环保生态板项目","项目总投资1.5亿元(其中，固定资产投资1.2亿元，流动资金0.3亿元)。用地约40亩，项目主要建设内容包括生产厂房、仓库、办公楼、购置机械设备安装及配套设施建设等。","覃塘国际绿色家居产业园（五里园）",{"v":1.5,"d":"1.50"},{"v":1.2,"d":"1.20"},"2022-11-01","2023-12-01",{"v":0.9,"d":"0.90"},"10.造纸与木材工业","增产增效项目"]
[{"$f":"SUBTOTAL(3,$B$159:B164)","v":6},"广西麦科斯新材料有限公司","年产20000吨新材料系列产品项目","项目建设用地约35亩，总投资1.5亿元（其中，固定投资1.1亿元，流动资金4000万元）建设内容包括生产脱模剂系列产品10500吨（其中脱模剂5000吨、洁模剂2500吨、水性脱模剂3000吨）、涂料系列产品9500吨（其中改性环氧树脂4000吨、油性涂料2000吨、油墨1000吨、胶粘剂1000吨、水性涂料1500吨，建设厂房、仓库及配套设施等。","贵港市覃塘区新材料科技园",{"v":1.5,"d":"1.50"},{"v":1.1,"d":"1.10"},"2022年11月","2024年12月",{"v":0.8,"d":"0.80"},"13.其他工业","补链强基项目"]
[{"$f":"SUBTOTAL(3,$B$159:B165)","v":7},"贵港市三禾米业有限公司","年产30万吨富硒优质粮油精深加工建设项目","项目属于扩建新生产基地，依托贵港富硒产品优质资源，采用自主研发先进技术和工艺，生产富硒大米及系列产品。项目占地约70亩，建设钢构生产车间及办公、电子商务、生活用房等配套设施工程;购置砻谷、碾米、抛光、色选、提升机、全自动烘干生产线等主要生产设备及变电器、消防设施等辅助设备;项目建设投产后，预计年加工富硒大米30万吨，预计年产值3亿元。","贵港市港北区产业园区（粤桂园）",{"v":1.4,"d":"1.40"},{"v":0.7,"d":"0.70"},"2019-10-01","2023-10-01",{"v":0.6,"d":"0.60"},"8.食品工业","高端化智能化绿色化改造项目"]
[{"$f":"SUBTOTAL(3,$B$159:B166)","v":8},"广西隆越科技有限公司","年产3万台冰箱项目","项目规划总用地面积为50亩（折33330㎡），规划建筑总面积45000㎡，其中生产车间和仓库42000㎡、技术研发和办公综合楼2900㎡、配电房及门卫室100㎡；购置安装设备生产线和组装生产线，以及环保、消防、水电、道路配套设施等。项目预计年组装生产三万台（套）家用（商用）冰箱。","贵港市产业园区石卡园",1.35,{"v":1.2,"d":"1.20"},"2022-12-01","2024-12-01",{"v":0.9,"d":"0.90"},"13.其他工业","增产增效项目"]
[{"$f":"SUBTOTAL(3,$B$159:B167)","v":9},"广西贵港智升木业有限公司","年产8万立方米实木多层生态家具板技改项目","项目现已完善高速印刷机、智能浸胶线、全自动贴面压机等工艺设备的购置；项目计划引进国内领先技术和生产设备，包括3D数码打印设备及版辊智能立体仓库、智能机械臂等，建设成为生产示范基地和绿色装饰材料发展示范企业，预计年产值达2亿元，年缴纳税额600万元以上，提供生产200-800人的就业岗位，具有非常好的经济效益和社会效益。","贵港市港南区",1.35,{"v":0.9,"d":"0.90"},"2022-03-01","2023-08-01",{"v":0.1,"d":"0.10"},"10.造纸与木材工业","增产增效项目"]
[{"$f":"SUBTOTAL(3,$B$159:B168)","v":10},"贵港市恒良升木业有限公司","生态阻燃版生产项目","项目总投资1.3亿元（其中固定资产投资1.1亿元，流动资金0.2亿元），规划用地面积29247.34平方米，主要建设内容包括生产厂房、仓库、办公楼、购置机械设备及配套设施建设等，项目建成后预计年产9万立方米生态阻燃板。","覃塘国际绿色家居产业园（五里园）",{"v":1.3,"d":"1.30"},{"v":1.1,"d":"1.10"},"2022年11月","2023年9月",{"v":0.5,"d":"0.50"},"10.造纸与木材工业","高端化智能化绿色化改造项目"]
[{"$f":"SUBTOTAL(3,$B$159:B169)","v":11},"广西仁泽木业有限公司","广西仁泽木业有限公司年产440万张建筑模板项目","规划用地面积约50亩。该项目主要建设生产建筑模板，建设生产线约40条，厂区内预计规划厂房2栋、办公楼1栋、宿舍楼1栋，总建筑面积约2.4万平方米。","桂平市龙门工业区",1.25,{"v":1.2,"d":"1.20"},"2020-11-01","2023-12-01",0.05,"10.造纸与木材工业","补链强基项目"]
[{"$f":"SUBTOTAL(3,$B$159:B170)","v":12},"广西益鲜美生物科技有限公司","年产10000吨酵母制品生产线项目","本项目为年产10000吨酵母制品生产线，该项目建设包括糖蜜储罐、发酵车间、抽提物车间、动物营养车间、公用工程、污水处理站、环保有机肥车间、办公生活区、及厂区内给排水、道路、绿化、消防、监控等配套设施。","贵港市产业园区粤桂园",1.25,{"v":1,"d":"1.00"},"2022-10-01","2024-10-01",{"v":0.4,"d":"0.40"},"8.食品工业","补链强基项目"]
[{"$f":"SUBTOTAL(3,$B$159:B171)","v":13},"贵港市千川木业有限责任公司","年产8万立方米生态胶合板建设项目（一期）","主要建设标准生产厂房、仓库、办公楼及配套建设办公等生产生活服务设施,通过购置整厂连线设备、成品锯边机、预压机、热压机、砂光机、自动送料机、冷压机、涂料机、单张翻板连线、排版线、对接齿接机、横拼机、竖拼机等先进设备，采用自动化程度高的整厂连线设备的生产新技术。","贵港市覃塘区国际绿色家居产业园（五里园）经三路与长兴路交汇处西南角",{"v":0.8,"d":"0.80"},0.45,"2022年11月","2023年10月",0.59,"10.造纸与木材工业","增产增效项目"]
[{"$f":"SUBTOTAL(3,$B$159:B172)","v":14},"广西平南鸿欣木业有限公司","年产9万立方米胶合板项目","项目总占地面积53.5亩，建设一条年产9万立方米胶合板项目生产线，购置压板机，流水线，锅炉，锯台等设备以及办公楼宿舍，道路绿化。","贵港市平南临江产业园",0.35,0.25,"2022-03-01","2023-12-01",0.17,"10.造纸与木材工业","补链强基项目"]
[{"$f":"SUBTOTAL(3,$B$159:B173)","v":15},"广西奔啦啦智能科技有限公司","广西奔啦啦智能科技有限公司新建2#厂房","项目新建厂房6100多平方米，购置一批注塑机和模具等国内领先的现代高端制造系统装备进行技术改造，生产出高质量、高附加值的畅销产品。","贵港市平南临江产业园",{"v":0.2,"d":"0.20"},{"v":0.2,"d":"0.20"},"2022-02-01","2023-04-01",0.09,"12.电力工业","高端化智能化绿色化改造项目"]
["九","玉林市",{"$f":"SUBTOTAL(3,C175:C185)","v":{"v":11,"d":"11项"}},null,null,{"$f":"SUBTOTAL(9,F175:F185)","v":{"v":11.4004,"d":"11.40"}},{"$f":"SUBTOTAL(9,G175:G185)","v":{"v":8.7797,"d":"8.78"}},null,null,{"$f":"SUBTOTAL(9,J175:J185)","v":{"v":4.222,"d":"4.22"}}]
[{"$f":"SUBTOTAL(3,$B$175:B175)","v":1},"广西腾飞新材料有限公司","废三元锂电池再生利用项目","项目规划用地160亩，涵盖废三元破碎筛分生产线、焙烧生产线、碳酸锂生产线、原辅材料库、产品库、废水处理系统，可形成年处理20000吨废三元锂电池或12811吨电池粉、产出12582吨提锂后镍钴粉及2525吨碳酸锂的生产能力。","玉林博白县龙潭产业园",{"v":4.3149,"d":"4.31"},{"v":3.0834,"d":"3.08"},"2022-07-01","2024-12-01",{"v":0.7,"d":"0.70"},"5.石油化工","补链强基项目"]
[{"$f":"SUBTOTAL(3,$B$175:B176)","v":2},"容县永琪包装制品有限公司","容县永琪包装制品有限公司技改搬迁项目","项目为扩大生产规模，改进工艺，进行整体搬迁技术改造，总占地面积约40亩。项目计划总投资2亿元人民币，主要依托高档印刷技术研发生产益智玩具、贺卡、精美包装盒等产品,购置一批新设备，总建筑面积约22000平方米，包括：厂房、原料仓、成品仓、办公及生活附属设施等。配套完善道路、绿化、供电、给排水、消防等设施。","容县经济开发区",{"$f":"20000/(10000)","v":{"v":2,"d":"2.00"}},{"$f":"16000/(10000)","v":{"v":1.6,"d":"1.60"}},"2022-10-01","2023-01-01",{"v":0.6,"d":"0.60"},"13.其他工业","增产增效项目"]
[{"$f":"SUBTOTAL(3,$B$175:B177)","v":3},"广西思特五金制品有限公司","广西思特五金制品有限公司整体搬迁技术改造升级项目","项目在原广东公司（广州市通赞五金塑料制品有限公司）的基础上整体迁建到容县，以扩大规模，改进工艺，并对产品进行更新换代；建设规模：占地面积约30亩，工厂面积38000万平方米；购置：自动送料连续冲压设备，数字化自动机械手，机器人焊机，数字化注塑机；主要经营：五金产品制造；五金产品批发；五金产品零售；五金产品研发等。","容县生态板材家具特色产业园",{"$f":"13000/(10000)","v":{"v":1.3,"d":"1.30"}},{"$f":"8000/(10000)","v":{"v":0.8,"d":"0.80"}},"2023-03-01","2024-03-01",{"v":0.5,"d":"0.50"},"7.电子工业","增产增效项目"]
[{"$f":"SUBTOTAL(3,$B$175:B178)","v":4},"北流市盛和瑞电子科技有限公司","北流市年产500万件电子产品建设项目","项目租赁轻工产业园标准化厂房，建设生产车间、组装车间等区域，购置注塑机、喷油机等机械设备，后期将建设无尘车间，生产高精度的电子产品。拟建成年产500万电子产品的生产线。主要生产产品为电动按摩器、智能蓝牙音响耳机、高精度节能水表等电子产品。","北流市民安工业园区",{"v":1,"d":"1.00"},0.82,"2023-03-03","2024-07-03",{"v":0.4,"d":"0.40"},"7.电子工业","高端化智能化绿色化改造项目"]
[{"$f":"SUBTOTAL(3,$B$175:B179)","v":5},"北流海螺水泥有限责任公司","1#窑综合能效提升改造项目","项目对1#窑进行综合能效提升改造，具体为对预热器系统进行改造，提高换热效率，降低系统阻力，降低生产线能耗；实施分级燃烧改造，提高脱销效率，改造后氨水用量≤400mg/Nm3，烧成系统标准煤耗由104.2kg/t下降至98kg/t，熟料综合电耗由49.7kWh/t下降至45kWh/t。","北流市民安镇工业园区",{"v":1,"d":"1.00"},0.85,"2023-01-21","2023-10-21",{"v":1,"d":"1.00"},"6.建材工业","增产增效项目"]
[{"$f":"SUBTOTAL(3,$B$175:B180)","v":6},"广西三元华鑫特种陶瓷有限公司","年产2500吨碳化硅陶瓷生产线技术改造扩建项目","项目在现有生产线的基础上进行扩建及技术升级改造项目，主要购买安装真空烧结炉30座、螺旋挤出机14台等设备设施以及配套的供排水、供电、环保治理、消防等公用设施，扩建部分生产线年产2500吨碳化硅陶瓷产品，项目主要产品是无压碳化硅陶瓷、重结晶碳化硅陶瓷，年新增能耗2075吨标煤。","北流市轻工产业园-日用陶瓷工业园",{"v":0.873,"d":"0.87"},{"v":0.8338,"d":"0.83"},"2023-01-09","2024-12-09",0.45,"13.其他工业","增产增效项目"]
[{"$f":"SUBTOTAL(3,$B$175:B181)","v":7},"北流市华鑫塑胶有限公司","年产量1500万件塑胶玩具制品异地迁建升级项目","项目建设选址位于北流市轻工产业园民乐片区B6地块第1幢厂房，项目厂房使用面积约3986.4平方米,建筑面积8000平方米，将东莞工厂设备整体搬迁到北流，更换陈旧设备，重新购买新型智能化设备，安装相关附属设备，打造较现有生产线效率提升20%及品质显著提升生产线，达到年产1500万件产能。进行技改后，耗电量约降低15%。","北流市民乐工业园区",{"v":0.3,"d":"0.30"},{"v":0.2,"d":"0.20"},"2023-02-19","2024-12-19",{"v":0.1,"d":"0.10"},"13.其他工业","增产增效项目"]
[{"$f":"SUBTOTAL(3,$B$175:B182)","v":8},"广西北流南达时装针织有限公司","服装生产线扩建项目","项目用地用地面积10亩，购入100台洗水、烫衣、电车、车花、查补等机器扩建纺织服装生产线，新增年产量600万件，提高生产效率与产品品质。","北流市民乐工业园区",{"v":0.2325,"d":"0.23"},{"v":0.2325,"d":"0.23"},"2022-07-11","2023-03-11",{"v":0.252,"d":"0.25"},"11.纺织服装与皮革","增产增效项目"]
[{"$f":"SUBTOTAL(3,$B$175:B183)","v":9},"北流市昱鸿印刷科技有限公司","年产240万平方米纸板印刷制品技术改造项目","改建钢结构厂房约1000平方米，对旧生产线进行改造，配套数十根版辊，并新购置安装自动化彩印生产线1条，增加产线后产能从原来的年产160万平米纸板印刷制品提升到年产240万平方米纸板印刷制品，生产效率提升35%，单位能耗强度从0.8万度电/万元增加值下降到0.5万度电/万元增加值。","北流市日用陶瓷工业园区",0.15,0.15,"2022-08-15","2023-06-15",0.09,"13.其他工业","增产增效项目"]
[{"$f":"SUBTOTAL(3,$B$175:B184)","v":10},"广西北流市新源瓷业有限责任公司","年产白瓷制品约600万件技术改造项目","改建钢材结构厂房约2000平方米，购置高温纯棉智能控温快速窑及相关配套设备进行技术升级，新增白瓷制品生产线一条，升级后年新增白瓷制品约600万件产能。","北流市民安工业园区",0.15,0.15,"2022-08-16","2023-06-16",0.06,"13.其他工业","增产增效项目"]
[{"$f":"SUBTOTAL(3,$B$175:B185)","v":11},"北流市碧皇服饰有限公司","年产加工150万件牛仔服装生产线升级改造建设项目","对原有牛仔服装生产线进行升级改造，淘汰更换部分旧机器为新型智能设备，打造较现有生产线效率提升20%及品质显著提升的生产线，原生产线年值约660万，新生产线建成后年产值约2000万。","北流市",0.08,0.06,"2023-01-17","2023-12-17",0.07,"11.纺织服装与皮革","增产增效项目"]
["十","百色市",{"$f":"SUBTOTAL(3,C187:C195)","v":{"v":9,"d":"9项"}},null,null,{"$f":"SUBTOTAL(9,F187:F195)","v":{"v":13.7003,"d":"13.70"}},{"$f":"SUBTOTAL(9,G187:G195)","v":{"v":10.0599,"d":"10.06"}},null,null,{"$f":"SUBTOTAL(9,J187:J195)","v":{"v":7.5,"d":"7.50"}}]
[{"$f":"SUBTOTAL(3,$B$187:B187)","v":1},"广西神光光学科技有限责任公司","废弃资源综合利用循环化产业链合成熔石英玻璃锭料项目","建设年产合成熔石英玻璃锭料600吨、高纯电子级四氯化硅7500吨、低纯四氯化硅375吨、副产15%盐酸17160吨的建设项目。新建主厂房、氢气站、氧气站、四氯化硅站、尾气处理站、动力站；综合楼、门卫等建构筑物、生产实施及辅助设施，新建总建筑面积23458.05m2；新建厂际输送管道、原料系统、砣料沉积系统（含制灯系统和尾气处理系统）、砣料加工系统、检验系统、包装系统、仓储系统等。","百色市田东县",5.02,4.67,"2022-06-01","2023-12-01",{"v":2.9,"d":"2.90"},"13.其他工业","高端化智能化绿色化改造项目"]
[{"$f":"SUBTOTAL(3,$B$187:B188)","v":2},"广西多得乐木业有限公司","多得乐绿色板材加工项目","该项目占地面积约350亩，计划建设一条年产15万立方米生态板生产线、一条年产10万立方米地板基材生产线、一条年产500万平方米木地板生产线，总建筑面积近13万平方米。","百色市平果市平果工业区",{"v":3,"d":"3.00"},{"v":1,"d":"1.00"},"2023-03-01","2023-12-01",{"v":1,"d":"1.00"},"10.造纸与木材工业","高端化智能化绿色化改造项目"]
[{"$f":"SUBTOTAL(3,$B$187:B189)","v":3},"靖西天桂铝业有限公司","氧化铝生产流程回收副产品金属镓技改项目","占地面积12000平方米，建筑面积9000平方米，建设生产车间、吸附车间、电解厂房、配电房、实验室等，年回收利用金属镓70吨。","百色市靖西市",{"v":1.6,"d":"1.60"},{"v":1.2,"d":"1.20"},"2023年6月","2024年6月",{"v":1.2,"d":"1.20"},"4.有色金属","高端化智能化绿色化改造项目"]
[{"$f":"SUBTOTAL(3,$B$187:B190)","v":4},"广西强强碳素股份有限公司","广西强强碳素股份有限公司焙烧4#、5#炉炉室技术改造项目","项目内容：1.各炉室底部铺平；2.各条火道、保温墙及横墙拆除后重新砌筑；配套项目：1.下沉厂房地板及烟道盖板铺平；2.安装电动轨道平车；3.安装负压调节阀；4、更换排烟架；5、天车梁维修、天车更换等项目。","平果市工业区",{"v":1.5203,"d":"1.52"},{"v":1.2399,"d":"1.24"},"2021-11-01","2023-12-01",0.55,"4.有色金属","增产增效项目"]
[{"$f":"SUBTOTAL(3,$B$187:B191)","v":5},"广西方圣纸业有限公司","广西方圣纸业有限公司年产50万吨包装用纸（一期）项目","收购靖西市可宇纸业有限公司，总占地面积为61159.21㎡，总建筑面积为14000㎡。在原有生产线基础上进行技术改造升级，采用纸机流送系统，长网多缸纸机等先进设备，增建一台25t/h的燃烧型生物质燃料的蒸汽锅炉，建设配套环保设施及制浆车间，扩建原有造纸车间，形成一期年产6.2万吨以废纸为原料的包装用纸生产能力，不改变原有生产能力。","百色市靖西市",{"v":1.1,"d":"1.10"},{"v":0.8,"d":"0.80"},"2022年3月","2023年12月",{"v":0.3,"d":"0.30"},"10.造纸与木材工业","增产增效项目"]
[{"$f":"SUBTOTAL(3,$B$187:B192)","v":6},"靖西绿源环保科技有限公司","年处理350万吨赤泥选铁项目","项目位于靖西铝工业园区（靖西天桂铝业厂区内，不新增建设用地）,项目占地约18亩。建设磁选楼、铁精矿压滤车间、铁精矿堆场等建筑，采用精选机、铁精矿浓密机、精矿槽、旋流器等设备，年处理赤泥350万吨，年产52%-55%的铁精矿58万吨。","百色市靖西市",0.75,{"v":0.7,"d":"0.70"},"2023年1月","2023年12月",{"v":0.7,"d":"0.70"},"4.有色金属","高端化智能化绿色化改造项目"]
[{"$f":"SUBTOTAL(3,$B$187:B193)","v":7},"广西嘉桂农业科技有限公司","年产500千升雄蛾酒生产线建设项目","新增扩建年产500千升雄蛾酒生产线一条，装修改造1890平方米洁净化生产车间一层、400平方米办公生活用房一排。项目计划总投资3625.317万元，其中固定资产投资1109.54万元。","百色市凌云县",0.36,{"v":0.1,"d":"0.10"},"2023-05-01","2023-12-01",{"v":0.6,"d":"0.60"},"8.食品工业","增产增效项目"]
[{"$f":"SUBTOTAL(3,$B$187:B194)","v":8},"广西信发铝电有限公司","氧化铝分解槽降温节能改造工程","项目无新增占地及建筑面积。项目建设内容为：在15台分解槽内壁增加管束系统（主要设施为236根公称直径57mm、长度为20米的换热管）。","靖西市",{"v":0.2,"d":"0.20"},{"v":0.2,"d":"0.20"},"2022年9月","2023年12月",{"v":0.1,"d":"0.10"},"4.有色金属","增产增效项目"]
[{"$f":"SUBTOTAL(3,$B$187:B195)","v":9},"广西岑山泉食品饮料有限公司","厂房及生产线设备扩建项目","建设标准厂房3000平米，新增袋装水生产线一套、一次性桶装水生产线一套，形成年生产25万吨山泉水生产能力；通过引进资金和人才、机械设备，加强技术培训和技术改造，扩大产能，重点增加袋装水、一次性桶装水、母婴用水和专用定制水等系列产品的开发利用，提高经济效益。","百色市凌云县",0.15,0.15,"2023-05-01","2023-12-01",0.15,"8.食品工业","增产增效项目"]
["十一","贺州市",{"$f":"SUBTOTAL(3,C197:C204)","v":{"v":8,"d":"8项"}},null,null,{"$f":"SUBTOTAL(9,F197:F204)","v":8.43},{"$f":"SUBTOTAL(9,G197:G204)","v":{"v":7.039,"d":"7.04"}},null,null,{"$f":"SUBTOTAL(9,J197:J204)","v":4.09}]
[{"$f":"SUBTOTAL(3,$B$197:B197)","v":1},"贺州市新桦发新型材料有限公司","碳酸钙综合利用项","项目在压制采用双搅拌技术改造，研发制造2.4*1.8，3.0*1.8规格新产品。建设形成年处置50万吨石材废渣及岗石废渣、年产100万吨高端活性碳酸钙粉体、年产20万吨环保涂料、年产10万吨腻子粉、年产10万吨母粒、年产500万平方米人造石（人造岗石、石英石）生产能力。","贺州高新技术产业开发区",{"v":3,"d":"3.00"},{"v":2.4,"d":"2.40"},"2021-10-01","2024-12-01",{"v":0.5,"d":"0.50"},"6.建材工业","高端化智能化绿色化改造项目"]
[{"$f":"SUBTOTAL(3,$B$197:B198)","v":2},"贺州市兆鑫五金制品有限公司","贺州市兆鑫五金制品有限公司结构调整转型升级项目钢渣有压热焖及加工生产线","建设年处理60万吨钢渣粉磨生产线，项目占地20亩，新建辊压破碎-有压热焖钢渣处理系统、辊压机联合球磨机开路钢渣粉磨系统，新建一座约2万吨储量钢渣原料堆棚、两座储量约7000吨钢渣微粉储存库及散装钢板仓、钢渣配料系统等，及配套供水、供电、供气等。","贺州市八步区",{"v":2,"d":"2.00"},{"v":2,"d":"2.00"},"2023-03-01","2023-12-01",{"v":2,"d":"2.00"},"3.冶金工业","补链强基项目"]
[{"$f":"SUBTOTAL(3,$B$197:B199)","v":3},"贺州市新联达新材料有限公司","年产40万吨高端碳酸钙粉体、5万吨可降解母粒项目","目占地面积48亩，约32000平方米，主要建设生产厂房、仓库、堆料场、办公楼、宿舍、食堂、实验中心及基础配套设施。购置立式磨粉机、分级机、粉体改性机、破碎机、洗矿机、搅拌机、混合机等专业设备一批。建成碳酸钙粉体生产线19条，可降解母粒生产线1条。项目完成达产后，可形成年产40万吨高端碳酸钙粉体、5万吨可降解母粒的生产能力。","贺州高新技术产业开发区",{"v":1.2,"d":"1.20"},{"v":0.8,"d":"0.80"},"2022-03-01","2023-12-01",0.59,"13.其他工业","高端化智能化绿色化改造项目"]
[{"$f":"SUBTOTAL(3,$B$197:B200)","v":4},"贺州市路创铸造有限公司","年产6万吨球墨铸铁井盖与铸件项目","项目主要建设内容为建设中频炉车间、浇铸车间、150吨砂处理生产线，配备对应的废气处理设施。项目配备H-A4110C-1-P垂直分型无箱射压全自动造型机，采用先进的KG中频感应电炉，主要产品为球墨铸铁井盖，产品具有韧性好、抗腐蚀性强、塑性好、强度高等特点。","贺州市八步区",{"v":0.7,"d":"0.70"},{"v":0.6,"d":"0.60"},"2022-11-01","2023-12-01",{"v":0.5,"d":"0.50"},"3.冶金工业","高端化智能化绿色化改造项目"]
[{"$f":"SUBTOTAL(3,$B$197:B201)","v":5},"广西贺州市芬芳果蔬食品有限公司","旅游农特产品生产及种植基地技改项目","项目主要烘干设备采用国内先进的空气能烘干房和全透明玻璃晒房，配套500平方米冷库，建设大型封闭的原料储存池，引进先进的流水线筛选分级设备和包装设备，建设企业检验室和农业深加工产品研发中心，采用国内领先污水处理设施及废水循环利用系统，确保生态环境不受破坏。","贺州市八步区",{"v":0.7,"d":"0.70"},{"v":0.7,"d":"0.70"},"2022-06-01","2023-08-01",{"v":0.2,"d":"0.20"},"8.食品工业","高端化智能化绿色化改造项目"]
[{"$f":"SUBTOTAL(3,$B$197:B202)","v":6},"广西桂东电力股份有限公司","调控一体化系统","依靠国内的先进技术，按照无人值班的要求，打造桂东电力（电网+电源）调度自动化系统和水库调度自动化系统及集控中心、光纤通信网、调度数据网、二次安防系统建设等项目，形成调控一体化系统建设项目。保证水电厂、变电站的安全和稳定运行，公司生产智能化水平将得到极大提升，对公司所属水电厂、变电站的集中管控，实现水电厂、变电站的无人值守或少人值守。","贺州市八步区",0.48,{"v":0.289,"d":"0.29"},"2022-12-01","2025-12-01",0.15,"12.电力工业","高端化智能化绿色化改造项目"]
[{"$f":"SUBTOTAL(3,$B$197:B203)","v":7},"华润水泥（富川）有限公司","华润水泥5G+无人驾驶智慧矿山项目","本项目在华润水泥富川采矿场搭建无人驾驶系统。建设内容四个版块：①建设5G专网，满足无人驾驶系统的低时延、大带宽的高性能网络需求。②部署无人驾驶系统平台，实现挖机卡车协同作业、矿卡无人驾驶运输、自动卸料和平台智能调度等功能。③替换纯电动宽体矿卡，满足无人驾驶系统车辆线控要求。④对原有矿山道路进行升级改造，按自动驾驶道路标准规范进行，满足自动驾驶的道路运行环境。","富川县莲山镇华润示范区核心区",0.28,{"v":0.2,"d":"0.20"},"2022-12-01","2023-08-01",0.13,"6.建材工业","高端化智能化绿色化改造项目"]
[{"$f":"SUBTOTAL(3,$B$197:B204)","v":8},"华润水泥（富川）有限公司","节能降碳技术改造项目","对风机系统主要耗能装备进行节能改造：立磨循环风机、窑尾高温风机、生料库底罗茨风机、窑头一次罗茨风机、煤磨送煤罗茨风机、生料库顶罗茨风机等高效节能改造；立磨选粉机节能改造；1#2#空压机站节能改造；煤磨系统窑头篦冷机节能改造；汽轮机余热发电冷凝器节能改造。","富川县莲山镇华润示范区核心区",0.07,0.05,"2022-12-02","2023-08-02",0.02,"6.建材工业","高端化智能化绿色化改造项目"]
["十二","河池市",{"$f":"SUBTOTAL(3,C206:C215)","v":{"v":10,"d":"10项"}},null,null,{"$f":"SUBTOTAL(9,F206:F215)","v":18.68},{"$f":"SUBTOTAL(9,G206:G215)","v":14.36},null,null,{"$f":"SUBTOTAL(9,J206:J215)","v":{"v":3.6,"d":"3.60"}}]
[{"$f":"SUBTOTAL(3,$B$206:B206)*1","v":1},"南丹县南方有色金属有限责任公司","锌精矿集中配矿及沸腾焙烧系统升级项目","本项目拟拆除48 平米沸腾炉及一座60平米沸腾炉，新建一座198平米沸腾炉。新建一个全厂锌精矿集中配料及输送系统、沸腾焙烧及制酸系统。主要建设内容包括锌精矿仓、精矿预处理及输送、沸腾焙烧（含余热锅炉、烟气收尘）、焙烧矿球磨上矿、烟气制酸等主要生产工序。","河池.南丹有色金属新材料工业园区",{"v":9.6,"d":"9.60"},{"v":7.9,"d":"7.90"},"2021-06-01","2024-03-01",{"v":0.5,"d":"0.50"},"4.有色金属","高端化智能化绿色化改造项目"]
[{"$f":"SUBTOTAL(3,$B$206:B207)*1","v":2},"广西南丹南方金属有限公司","铅冰铜及硫化砷渣资源化高效协同处置项目","项目采用氧压浸出等先进技术，协同处理铅冰铜及硫化砷等冶炼废渣，并综合回收其中的铜、砷、铼等有价金属，制造金属砷、铼粉等新产品。项目购置氧压浸出釜、闪蒸槽等先进设备200多台套，建设形成年产铅精矿2.9万吨，铜精矿1.6万吨，高纯三氧化二砷9000吨，金属砷1000吨，高纯砷100吨，铼粉3000吨产能，实现新增产值5亿元。","河池.南丹有色金属新材料工业园区",{"v":3.8,"d":"3.80"},{"v":3,"d":"3.00"},"2022-09-01","2024-06-01",{"v":1,"d":"1.00"},"4.有色金属","补链强基项目"]
[{"$f":"SUBTOTAL(3,$B$206:B208)*1","v":3},"广西河丰药业有限责任公司","东兰县岩黄连注射液生产线技术升级改造工程项目","项目规划改造建筑面积11281平方米，改造内容包括岩黄连注射剂与岩黄连原料药生产车间及辅助车间、质检实验室、仓库，以及给排水等配套设施，同时装配部分新设备及信息化建设。配置包括动态多能提取、回流、重结晶、双效三效浓缩、喷雾干燥等设备现代设备仪器。项目建成将大幅扩大生产线产能，其中：水针生产线产能为年产1亿支。","河池市东兰县",1.15,{"v":1,"d":"1.00"},"2023-03-01","2024-03-01",{"v":0.2,"d":"0.20"},"9.医药工业","增产增效项目"]
[{"$f":"SUBTOTAL(3,$B$206:B209)*1","v":4},"广西佑太药业有限责任公司","广西佑太药业有限责任公司医药中间体项目","租用河池市大任产业园1栋标准厂房，购置结晶釜、缓冲罐等设备，采用先进工艺技术，形成年产300吨苯酸甲硝唑、800吨2-甲基咪唑、100吨左旋多巴及其他原料药的规模。","河池市大任产业园",{"v":1,"d":"1.00"},0.58,"2023年3月","2024年12月",{"v":0.5,"d":"0.50"},"9.医药工业","增产增效项目"]
[{"$f":"SUBTOTAL(3,$B$206:B210)*1","v":5},"广西益香园食品有限公司","年产2万吨挂面项目","项目总投资1亿元，建设1.2万平方米的厂房，建年产2万吨挂面生产线","河池环江工业园区",{"v":1,"d":"1.00"},0.45,"2022-05-01","2023年11月",{"v":0.8,"d":"0.80"},"8.食品工业","补链强基项目"]
[{"$f":"SUBTOTAL(3,$B$206:B211)*1","v":6},"广西河池蓝天化工科技有限公司","年产5000吨固相法有机颜料酞菁蓝及联产10000吨硫酸铵项目（一期）","项目属于化肥链，项目采用企业专用固相法工艺，有超细粉碎机，隔膜压滤机等先进设备，项目生产高品质有机颜料，是环保颜料。","河池市工业园区大任产业园河化片区",0.85,{"v":0.6,"d":"0.60"},"2021-09-01","2023-05-01",{"v":0.2,"d":"0.20"},"5.石油化工","补链强基项目"]
[{"$f":"SUBTOTAL(3,$B$206:B212)*1","v":7},"广西罗城楚源木业有限公司","年产100万张进口橡胶木环保家具板","项目采用进口橡胶木为原材料和自动化程度高的整厂连线设备生产技术，制造高端环保家具板新产品。项目新建（改建）厂房、仓库、办公楼、员工宿舍等相关设施，购置连线设备、自动送料机、砂光机、中拼机、齿接机、热压机、冷压机、涂胶机、导热油炉、水平升降机，锯边机等先进生产设备，建设形成年产100万张进口橡胶木环保家具板生产线，实现新增产值15000万元。","河池市罗城县城东工业园",{"v":0.6,"d":"0.60"},{"v":0.6,"d":"0.60"},"2023-04-01","2024-03-01",{"v":0.2,"d":"0.20"},"6.建材工业","增产增效项目"]
[{"$f":"SUBTOTAL(3,$B$206:B213)*1","v":8},"东兰县卓立服装有限公司","东兰县服装制造产业链项目","一期项目占地面积3724平米，购买机械设备*双针车、工作凳、查衫台等生产设备，初期内设有两条生产线试运营，主要生产牛仔裤、衬衬衫、内衣等服装制造产业链。","河池市东兰县",{"v":0.3,"d":"0.30"},0.05,"2022-08-01","2023-01-01",0.05,"11.纺织服装与皮革","补链强基项目"]
[{"$f":"SUBTOTAL(3,$B$206:B214)*1","v":9},"广西广生隆木业有限公司","年产3万立方米集成材项目","本项目占地123亩，总投资2200万元，项目利用桉木旋切剩余物（木芯）生产桉木集成材、装饰实木线条和家具用实木生态板","河池环江工业园区",0.22,{"v":0.1,"d":"0.10"},"2022-05-01","2023-05-01",{"v":0.1,"d":"0.10"},"10.造纸与木材工业","补链强基项目"]
[{"$f":"SUBTOTAL(3,$B$206:B215)*1","v":10},"广西东兰县墨米酒厂","墨米酒生产提质增效改造及酒文化展示工程","项目主要对蒸饭间、糖化间、陈酿间（包括藏酒山洞）、生产车间的改造，锅炉改造、酒厂供水工程改造等。建设新产品研究室、微生物实验室、糖化发酵实验室、产品调配室、产品检测化验室、感官品鉴室。实施墨米酒产品及酒文化展示工程。","河池市东兰县",0.16,0.08,"2021-08-01","2023-12-01",0.05,"8.食品工业","增产增效项目"]
["十三","来宾市",{"$f":"SUBTOTAL(3,C217:C230)","v":{"v":14,"d":"14项"}},null,null,{"$f":"SUBTOTAL(9,F217:F230)","v":{"v":12.3696,"d":"12.37"}},{"$f":"SUBTOTAL(9,G217:G230)","v":{"v":9.4338,"d":"9.43"}},null,null,{"$f":"SUBTOTAL(9,J217:J230)","v":3.82}]
[{"$f":"SUBTOTAL(3,$B$217:B217)*1","v":1},"象州加美人造板有限责任公司","年产15万m3高密度薄板生产线项目","项目占地面积170亩，建设一条年产15万立方高中密度纤维板生产线，配套建设一条年产6000吨脲醛胶黏剂生产线及制胶车间、物料库等公辅工程，购置木片筛选机、波形筛、纤维气流分选机等先进设备。项目建成后，具备年综合利用枝桠、木屑等木材加工剩余物15.2万吨，年产15万立方米中高密度纤维板及6000吨脲醛胶黏剂的能力。","来宾市象州县",{"v":2,"d":"2.00"},{"v":1.7278,"d":"1.73"},"2021-01-01","2023-06-01",{"v":0.3,"d":"0.30"},"6.建材工业","增产增效项目"]
[{"$f":"SUBTOTAL(3,$B$217:B218)*1","v":2},"广西来宾凯立木业有限公司","年产15万立方米刨花板生产线升级改造项目","项目将现有热压多层生产线改造为连续平压生产线，提升生产线的自动化程度，新增连续性预压机、连续压机主机、砂光机等生产设备，建设辅助生产设施和公用工程。项目实施后，形成由年产10万立方米中密度纤维板升级改造为年产15万立方米刨花板。","来宾市兴宾区",{"v":1.911,"d":"1.91"},{"v":1.5,"d":"1.50"},"2022-12-01","2023-10-01",{"v":1.5,"d":"1.50"},"10.造纸与木材工业","增产增效项目"]
[{"$f":"SUBTOTAL(3,$B$217:B219)*1","v":3},"来宾环球经典新型建材有限公司","来宾环球经典新型建材有限公司无机人造石材生产项目","项目采用自动配料、自动养护和转运、自动贴膜等先进技术，引入DCS集中控制系统和MES生产管理系统，建设两条适合人造石生产过程管理的生产线，实现对人造石生产制造全流程监督，做到目视化和精细化管理。","来宾市工业园区",{"v":1.8,"d":"1.80"},{"v":1.3,"d":"1.30"},"2022-02-01","2023-06-01",{"v":0.5,"d":"0.50"},"6.建材工业","高端化智能化绿色化改造项目"]
[{"$f":"SUBTOTAL(3,$B$217:B220)*1","v":4},"广西海螺环境科技有限公司","年产3.2万m3(首期1.5万m3)SCR脱硝催化剂项目","项目采用先进智能化设备，自主成套开发应用的混炼、挤出和切割自动系统，运用蜂窝陶瓷工艺技术，研发制造SCR脱硝催化剂产品。项目购置混炼机8台、挤压机、烘焙线自动下料设备、切割设备等先进设备，建设主厂房车间、回收再生车间及配套设施，一条隧道式干燥线、7条烘焙线，建设形成1.5万m³SCR脱硝催化剂的生产能力。","来宾市工业园区",1.53,1.21,"2021-07-01","2023-05-01",0.02,"13.其他工业","高端化智能化绿色化改造项目"]
[{"$f":"SUBTOTAL(3,$B$217:B221)*1","v":5},"广西煜燊高分子材料有限公司","年产1150万平方米高分子光学材料项目","为打造中沛电子信息生产基地电子信息全产业链。为扩大产能，企业新购置建设用地30亩，购进涂布机、吹膜机、修边机等先进生产设备，提升生产技术能力。项目计划建设1条塑胶原颗粒、塑胶原材吹膜全自动生产线，5条高分子光学材料生产线。项目竣工达产后将形成年产1150万平方米高分子光学材料的规模。","来宾市工业园区",{"v":1,"d":"1.00"},{"v":0.5,"d":"0.50"},"2020-05-01","2023-08-01",{"v":0.2,"d":"0.20"},"7.电子工业","增产增效项目"]
[{"$f":"SUBTOTAL(3,$B$217:B222)*1","v":6},"广西双利铝业有限公司","5万吨高端铝合金和6万吨多组元高端铝合金新材料技改项目","项目采用半固态铝合金先进生产工艺和技术，购置蓄热式铝熔炼系统、全自动铸锭生产线、叠锭机器人等先进设备，建设形成年产铝合金杆5万吨、铝合金锭6万吨产能。","来宾市工业园区",{"v":0.8126,"d":"0.81"},{"v":0.5,"d":"0.50"},"2021-11-01","2023-12-01",0.25,"4.有色金属","高端化智能化绿色化改造项目"]
[{"$f":"SUBTOTAL(3,$B$217:B223)*1","v":7},"广西彩虹汽车零部件有限公司","象州彩虹汽车零部件生产线项目","项目建设生产车间及其供水、排水、场地硬化等基础配套设施,项目购置精密平面磨床、离心式热风干燥机、自动放线架等设备，建设精密汽车零部件生产线。项目建设形成后，能年产汽车零部件5000吨，实现新增产值15000万元。","来宾市象州县",{"v":0.6,"d":"0.60"},{"v":0.5,"d":"0.50"},"2020-06-01","2023-06-01",{"v":0.2,"d":"0.20"},"1.汽车工业","补链强基项目"]
[{"$f":"SUBTOTAL(3,$B$217:B224)*1","v":8},"广西正龙木业有限责任公司","正龙木业年产10万立方胶合板项目","项目购置整厂连线设备、热压机、砂光机、自动送料机、冷压机、涂料机、单张翻板连线等先进设备，建设形成年产环保家具生态板产品10万立方米产能，实现新增产值21000万元。","来宾市象州县",{"v":0.6,"d":"0.60"},{"v":0.5,"d":"0.50"},"2021-03-01","2023-12-01",0.03,"10.造纸与木材加工","增产增效项目"]
[{"$f":"SUBTOTAL(3,$B$217:B225)*1","v":9},"广西金秀瑶粮米业有限公司","广西金秀瑶粮米业有限公司迁建项目","项目占地面积30亩，采购最新一代设备（稻谷烘干设备）、引进先进的成套加工设备（砻谷机4台、米机4台、抛光机3台、色选机2台等）。项目建成投产后，每日烘干200吨生谷，稻谷加工生产能力达到200吨/日。","来宾市金秀县",0.58,{"v":0.3,"d":"0.30"},"2023-09-01","2025-12-01",{"v":0.1,"d":"0.10"},"8.食品工业","高端化智能化绿色化改造项目"]
[{"$f":"SUBTOTAL(3,$B$217:B226)*1","v":10},"广西来宾东糖纸业有限公司","广西来宾东糖纸业有限公司节能降耗升级技改项目（一期）","项目计划配套建设厂房1381.71平方米（占地面积438.23平方米），一栋4层蒸煮工段厂房及1层变配电室等附属设施，主要建设内容：①将1号生产线原高能耗蒸球的蒸煮技改为低能耗置换立锅间歇蒸煮，将2号生产线原高能耗蒸球的蒸煮技改为横管连续蒸煮；②2号洗选工段的增加一台双辊洗浆机；③2号漂白工段的EOP增加一个预EOP反应段。","来宾市工业园区",{"v":0.486,"d":"0.49"},{"v":0.486,"d":"0.49"},"2022-06-01","2023-06-01",{"v":0.3,"d":"0.30"},"10.造纸与木材工业","增产增效项目"]
[{"$f":"SUBTOTAL(3,$B$217:B227)*1","v":11},"来宾市桥宏纸业有限责任公司","来宾市桥宏纸业年产2万吨特种包装纸扩建项目","项目属现代轻工纺织产业链延链补链的高档纸制造项目总投资4000万元，其中固定投资3800万，项目填补广西高档吸油纸，高级拷贝纸的领域空缺，我司采购国内最先进的2台机型1400-2850高速纸机机型，核心部件采用国内外先进设备。研发制造高级吸油纸，高级拷贝纸，建设项目产能达到2万吨。","来宾市工业园区",{"v":0.4,"d":"0.40"},0.38,"2023-01-01","2024-12-01",0.25,"10.造纸与木材工业","增产增效项目"]
[{"$f":"SUBTOTAL(3,$B$217:B228)*1","v":12},"广西金秀大瑶山米业有限责任公司","广西金秀大瑶山米业有限责任公司改造迁建项目","项目占地面积20亩，建设项目： ①日烘干湿稻谷200吨，购置国内先进稻谷烘干设备。 ②年产1.8万吨国内先进生产线设备，购置砻谷机3台，米机3台，色选机3台，大米全自动包装生产线一台等。同时，安装购置多台除尘脉冲设备，打造高标准无尘生产车间。③建设约3500平方，储存稻谷8000吨标准仓库（其中约2000平方冷库）及粮食物流仓库。④约1000平方集会议、办公、培训、产品展厅及电商销售中心为一体现代多功能综合办公楼。","来宾市金秀县",0.25,0.25,"2023-09-01","2025-12-01",{"v":0,"d":"0.00"},"8.食品工业","增产增效项目"]
[{"$f":"SUBTOTAL(3,$B$217:B229)*1","v":13},"广西聚沃食品科技有限公司","广西聚沃食品科技有限公司酱腌菜生产厂房扩建项目","项目总用地面积约23亩，总建筑面积约15000平方米。主要建设内容包括：新建厂房；引进国内先进酱腌菜生产设备20台（清洗线、蒸煮线、搅拌机、真空包装机、整形机、大型巴氏灭菌线、打包机生产设备等）。生产即食酸笋、红油酸笋、原味酸笋、原味酸豆角、红油酸豆角、酱香萝卜干、老坛酸菜、酸姜、泡椒等酱腌菜产品。","来宾市金秀县",0.25,0.13,"2023-03-01","2024-12-01",0.12,"8.食品工业","增产增效项目"]
[{"$f":"SUBTOTAL(3,$B$217:B230)*1","v":14},"广西糖业集团红河制糖有限公司","蒸汽煮糖数字化升级智能管控项目","项目主要是建设一套以蒸汽为主线的集中控制系统软件，从而实现对蒸汽利用全过程监控管理、蒸发系统智能管控、设计和完善煮糖控制模型。","来宾市兴宾区",0.15,0.15,"2022-09-01","2023-10-01",0.05,"8.食品工业","高端化智能化绿色化改造项目"]
["十四","崇左市",{"$f":"SUBTOTAL(3,C232:C235)","v":{"v":4,"d":"4项"}},null,null,{"$f":"SUBTOTAL(9,F232:F235)","v":24.84},{"$f":"SUBTOTAL(9,G232:G235)","v":14.92},null,null,{"$f":"SUBTOTAL(9,J232:J235)","v":7.44}]
[{"$f":"SUBTOTAL(3,$B$232:B232)*1","v":1},"广西合利来实业集团有限公司","半导体LED封装与应用产业链项目","总建筑面积7.3万平方米，生产半导体发光二极管应用、LED终端应用系列产品、高端LED开关电源应用及工业机器人研发、生产、应用等。","崇左市大新县",{"v":12,"d":"12.00"},{"v":7,"d":"7.00"},"2023-01-01","2024-10-01",{"v":2,"d":"2.00"},"7.电子工业","高端化智能化绿色化改造项目"]
[{"$f":"SUBTOTAL(3,$B$232:B233)*1","v":2},"格格电梯（上海）有限公司","西西里电梯产业园项目","总建筑面积约73857平方米，建设标准生产厂房、电梯试验塔、办公大楼、研发大楼、电梯博物馆、配套员工宿舍、食堂等。","崇左市大新县",{"v":8,"d":"8.00"},{"v":4,"d":"4.00"},"2023-04-01","2024-12-01",{"v":2,"d":"2.00"},"2.机械工业","增产增效项目"]
[{"$f":"SUBTOTAL(3,$B$232:B234)*1","v":3},"广西华泰钢结构有限公司","华泰大型钢结构加工厂建设项目","主要建设钢结构加工厂房70000平方米，办公楼、员工宿舍楼等配套用房10000平方米，共计8条现代化钢结构加工生产线，年产钢构件各类产品11万吨。","崇左市扶绥县",3.44,{"v":2.8,"d":"2.80"},"2022-03-01","2023-09-01",2.94,"6.建材工业","增产增效项目"]
[{"$f":"SUBTOTAL(3,$B$232:B235)*1","v":4},"广西嘉润交通设施有限公司","年产20万吨交通护栏及电力设施项目","项目建设后，年产镀锌护栏板10万吨，电力设施产品10万吨。","崇左市扶绥县",{"v":1.4,"d":"1.40"},1.12,"2023-02-01","2023-07-01",{"v":0.5,"d":"0.50"},"13.其他工业","增产增效项目"]